{"text_format":"1","workbook":"xlsx","n_sheets":17,"sheets":["FM","Sirdal","Kvinesdal","Hægebostad","Lyngdal","Lindesnes","Audnedal","Åseral","Marnardal","Søgne","Songdalen","Vennesla","Flekkefjord","Farsund","Mandal","Kristiansand","Ark1"],"not_rendered":{"charts":0,"images":0,"macros":0,"external_links":1,"defined_names":17,"comments":0,"pivot_tables":0},"unopened":[],"bounds":{"document_bytes":16777216,"sheet_cells":100000,"rows_first":2000,"rows_last":500,"rows_between":2000,"halvings":0,"cell_chars":16384,"cell_head_chars":4096},"cells_cut":0,"cells_raw":0,"read":"whole","date_system":"1900"}

{"sheet":"FM","index":0,"n_rows":93,"n_cols":4,"rows_kept":93,"cut":false,"hidden":false,"merged":[]}
["1. Måloppnåelse (antall ansatte) til Kompetansetiltak (grunn-, videre- og etterutdanning)"]
["1.1. Videregående skole, fag- og yrkesopplæring innen helse (fagbrev)"]
["Utdanningstype","Fullført utdanning ","Under utdanning, men ikke fullført","Samlet antall fullførte og under utdanning "]
["a. Helsefagarbeider",{"$f":"SUM(Sirdal:Kristiansand!B4)","v":0},{"$f":"SUM(Sirdal:Kristiansand!C4)","v":0},{"$f":"B4+C4","v":0}]
["b. Annen utdanning på videregående skolenivå ",{"$f":"SUM(Sirdal:Kristiansand!B5)","v":0},{"$f":"SUM(Sirdal:Kristiansand!C5)","v":0},{"$f":"B5+C5","v":0}]
["Sum (1.1) :",{"$f":"SUM(B4:B5)","v":0},{"$f":"SUM(C4:C5)","v":0},{"$f":"B6+C6","v":0}]
["1.2. Fagskoleutdanning"]
["a. Psykisk helsearbeid og rusarbeid",{"$f":"SUM(Sirdal:Kristiansand!B8)","v":0},{"$f":"SUM(Sirdal:Kristiansand!C8)","v":0},0]
["b. Eldreomsorg/demens",{"$f":"SUM(Sirdal:Kristiansand!B9)","v":0},{"$f":"SUM(Sirdal:Kristiansand!C9)","v":0},0]
["c. Habilitering/rehabilitering",{"$f":"SUM(Sirdal:Kristiansand!B10)","v":0},{"$f":"SUM(Sirdal:Kristiansand!C10)","v":0},0]
["d. Kreftomsorg/lindrende behandling",{"$f":"SUM(Sirdal:Kristiansand!B11)","v":0},{"$f":"SUM(Sirdal:Kristiansand!C11)","v":0},0]
["e. Veiledning",{"$f":"SUM(Sirdal:Kristiansand!B12)","v":0},{"$f":"SUM(Sirdal:Kristiansand!C12)","v":0},0]
["f. Annen fagskoleutdanning ",{"$f":"SUM(Sirdal:Kristiansand!B13)","v":0},{"$f":"SUM(Sirdal:Kristiansand!C13)","v":0},0]
["Sum (1.2) :",{"$f":"SUM(B8:B13)","v":0},{"$f":"SUM(C8:C13)","v":0},{"$f":"B14+C14","v":0}]
["1.3. Bachelorutdanning helse- og sosialfag"]
["a. Sykepleie",{"$f":"SUM(Sirdal:Kristiansand!B16)","v":0},{"$f":"SUM(Sirdal:Kristiansand!C16)","v":0},0]
["b. Vernepleie",{"$f":"SUM(Sirdal:Kristiansand!B17)","v":0},{"$f":"SUM(Sirdal:Kristiansand!C17)","v":0},0]
["c. Fysioterapi",{"$f":"SUM(Sirdal:Kristiansand!B18)","v":0},{"$f":"SUM(Sirdal:Kristiansand!C18)","v":0},0]
["d. Ergoterapi",{"$f":"SUM(Sirdal:Kristiansand!B19)","v":0},{"$f":"SUM(Sirdal:Kristiansand!C19)","v":0},0]
["e. Sosialt arbeid (sosionom)",{"$f":"SUM(Sirdal:Kristiansand!B20)","v":0},{"$f":"SUM(Sirdal:Kristiansand!C20)","v":0},0]
["f. Barnevernspedagogikk",{"$f":"SUM(Sirdal:Kristiansand!B21)","v":0},{"$f":"SUM(Sirdal:Kristiansand!C21)","v":0},0]
["g. Annen bachelorutdanning",{"$f":"SUM(Sirdal:Kristiansand!B22)","v":0},{"$f":"SUM(Sirdal:Kristiansand!C22)","v":0},0]
["Sum (1.3) :",{"$f":"SUM(B16:B22)","v":0},{"$f":"SUM(C16:C22)","v":0},{"$f":"B23+C23","v":0}]
["1.4. Videreutdanning og mastergradutdanning (påbygg bachelorutdanning)"]
["a. Psykisk helsearbeid og rusarbeid",{"$f":"SUM(Sirdal:Kristiansand!B25)","v":0},{"$f":"SUM(Sirdal:Kristiansand!C25)","v":0},0]
["b. Tverrfaglig videreutdanning i psykososialt arbeid med barn og unge",{"$f":"SUM(Sirdal:Kristiansand!B26)","v":0},{"$f":"SUM(Sirdal:Kristiansand!C26)","v":0},0]
["c. Eldreomsorg/demens",{"$f":"SUM(Sirdal:Kristiansand!B27)","v":0},{"$f":"SUM(Sirdal:Kristiansand!C27)","v":0},0]
["d. Kreftomsorg/lindrende pleie",{"$f":"SUM(Sirdal:Kristiansand!B28)","v":0},{"$f":"SUM(Sirdal:Kristiansand!C28)","v":0},0]
["e. Habilitering/rehabilitering",{"$f":"SUM(Sirdal:Kristiansand!B29)","v":0},{"$f":"SUM(Sirdal:Kristiansand!C29)","v":0},0]
["f. Veiledning",{"$f":"SUM(Sirdal:Kristiansand!B30)","v":0},{"$f":"SUM(Sirdal:Kristiansand!C30)","v":0},0]
["g. Lederutdanning",{"$f":"SUM(Sirdal:Kristiansand!B31)","v":0},{"$f":"SUM(Sirdal:Kristiansand!C31)","v":0},0]
["h. Annen videreutdanning og/eller masterutdanning ",{"$f":"SUM(Sirdal:Kristiansand!B32)","v":0},{"$f":"SUM(Sirdal:Kristiansand!C32)","v":0},0]
["Sum (1.4) :",{"$f":"SUM(B25:B32)","v":0},{"$f":"SUM(C25:C32)","v":0},{"$f":"B33+C33","v":0}]
["1.5. ABC-opplæring"]
["a. Demensomsorgens ABC",{"$f":"SUM(Sirdal:Kristiansand!B35)","v":0},{"$f":"SUM(Sirdal:Kristiansand!C35)","v":0},0]
["b. Eldreomsorgens ABC",{"$f":"SUM(Sirdal:Kristiansand!B36)","v":0},{"$f":"SUM(Sirdal:Kristiansand!C36)","v":0},0]
["c. Mitt livs ABC",{"$f":"SUM(Sirdal:Kristiansand!B37)","v":0},{"$f":"SUM(Sirdal:Kristiansand!C37)","v":0},0]
["d. Velferdsteknologien ABC",{"$f":"SUM(Sirdal:Kristiansand!B38)","v":0},{"$f":"SUM(Sirdal:Kristiansand!C38)","v":0},0]
["e. ABC musikkbasert miljøbehandling",{"$f":"SUM(Sirdal:Kristiansand!B39)","v":0},{"$f":"SUM(Sirdal:Kristiansand!C39)","v":0},0]
["Sum (1.5) :",{"$f":"SUM(B35:B39)","v":0},{"$f":"SUM(C35:C39)","v":0},{"$f":"B40+C40","v":0}]
["1.6. Annen internopplæring / korte etterutdanninger mv. "]
["a.  Innen psykisk helsearbeid og rusfeltet",{"$f":"SUM(Sirdal:Kristiansand!B42)","v":0},{"$f":"SUM(Sirdal:Kristiansand!C42)","v":0},0]
["b. Innen eldreomsorg og demens",{"$f":"SUM(Sirdal:Kristiansand!B43)","v":0},{"$f":"SUM(Sirdal:Kristiansand!C43)","v":0},0]
["c. Annet høyt prioritert internopplæring/etterutdanning",{"$f":"SUM(Sirdal:Kristiansand!B44)","v":0},{"$f":"SUM(Sirdal:Kristiansand!C44)","v":0},0]
["Sum (1.6) :",{"$f":"SUM(B42:B44)","v":0},{"$f":"SUM(C42:C44)","v":0},{"$f":"B45+C45","v":0}]
[" 1.7. Andre kompetansehevende tiltak med midler direkte fra fylkesmannen  (utdyp i skriftlig del av rapporteringsskjema)"]
["a. Fylkeskoordinator til prosjekt Menn i helse  (ikke for kommuner)",{"$f":"SUM(Sirdal:Kristiansand!B47)","v":0},{"$f":"SUM(Sirdal:Kristiansand!C47)","v":0},0]
["b. Desentralisert utdanning fra høgskoler/universiteter (ikke for kommuner)",{"$f":"SUM(Sirdal:Kristiansand!B48)","v":0},{"$f":"SUM(Sirdal:Kristiansand!C48)","v":0},{"$f":"B48+C48","v":0}]
["c. Annet  (ikke for kommuner)",{"$f":"SUM(Sirdal:Kristiansand!B49)","v":0},{"$f":"SUM(Sirdal:Kristiansand!C49)","v":0},0]
["Sum (1.7) :",{"$f":"SUM(B47:B49)","v":0},{"$f":"SUM(C47:C49)","v":0},{"$f":"B50+C50","v":0}]
["Kompetansetiltak (måloppnåelse) Totalt :",{"$f":"B6+B14+B23+B33+B40+B45+B50","v":0},{"$f":"C6+C14+C23+C33+C40+C45+C50","v":0},{"$f":"B51+C51","v":0}]
["2. Tilskudd til Kompetansetiltak"]
["2.1. Totalt søkt beløp (Kompetansetiltak totalt)",null,null,{"$f":"SUM(Sirdal:Kristiansand!D53)","v":0}]
["2.2. Utbetalt beløp (Kompetansetiltak totalt)",null,null,{"$f":"SUM(D55:D61)","v":0}]
["a. Videregående skole, fag- og yrkesopplæring innen helse (fagbrev)",null,null,{"$f":"SUM(Sirdal:Kristiansand!D55)","v":0}]
["b. Fagskoleutdanning",null,null,{"$f":"SUM(Sirdal:Kristiansand!D56)","v":0}]
["c. Bachelorutdanning helse- og sosialfag",null,null,{"$f":"SUM(Sirdal:Kristiansand!D57)","v":0}]
["d.  Videreutdanning og mastergradutdanning (påbygg bachelorutdanning)",null,null,{"$f":"SUM(Sirdal:Kristiansand!D58)","v":0}]
["e. ABC-opplæring",null,null,{"$f":"SUM(Sirdal:Kristiansand!D59)","v":0}]
["f. Annen internopplæring / korte etterutdanninger /kurs mv. ",null,null,{"$f":"SUM(Sirdal:Kristiansand!D60)","v":0}]
["g. Andre Kompetansehevende tiltak. Fylkesmannen rapporterer her, ikke kommuner",null,null,{"$f":"SUM(Sirdal:Kristiansand!D61)","v":0}]
["2.3. Ubenyttet beløp (Kompetansetiltak totalt)",null,null,{"$f":"SUM(Sirdal:Kristiansand!D62)","v":0}]
["3. Opplæringstilskudd BPA (brukerstyrt personlig assistanse)"]
["3.1. Opplæringstype",null,null,"Antall personer innvilget"]
["a. Arbeidsledere som har fått tilskudd til opplæring",null,null,{"$f":"SUM(Sirdal:Kristiansand!D65)","v":0}]
["b. Saksbehandlere som har fått tilskudd til opplæring",null,null,{"$f":"SUM(Sirdal:Kristiansand!D66)","v":0}]
["c. Assistenter som har fått tilskudd til opplæring",null,null,{"$f":"SUM(Sirdal:Kristiansand!D67)","v":0}]
["d. Uspesifisert ",null,null,{"$f":"SUM(Sirdal:Kristiansand!D68)","v":0}]
["SUM (3.1) :",null,null,{"$f":"SUM(D65:D68)","v":0}]
["4. Tilskudd til BPA"]
["4.1. Totalt søkt beløp ",null,null,{"$f":"SUM(Sirdal:Kristiansand!D71)","v":0}]
["4.2. Utbetalt beløp  ",null,null,{"$f":"SUM(Sirdal:Kristiansand!D72)","v":0}]
["4.3. Ubenyttet beløp ",null,null,{"$f":"SUM(Sirdal:Kristiansand!D73)","v":0}]
["5. Innovasjonsprosjekter"]
["5.1. Prosjekttype",null,null,"Antall prosjekter innvilget"]
["a. Forebygging,  tidlig innsats og egenmestring",null,null,{"$f":"SUM(Sirdal:Kristiansand!D76)","v":0}]
["b. Habilitering og rehabilitering, herunder hverdagsrehabilitering",null,null,{"$f":"SUM(Sirdal:Kristiansand!D77)","v":0}]
["c. Velferdsteknologiske løsninger\n(Dette punktet gjelder ikke for øremerkede midler til \"Nasjonalt velferdsteknologiprogram- innføring av velferdsteknologiskeløsninger (Omsorg 2020)\"\nRapporteringen for velferdsteknologiprogram skal gjøres under punkt 7) ",null,null,{"$f":"SUM(Sirdal:Kristiansand!D78)","v":0}]
["d. Samspill med pårørende og frivillige i omsorgssektoren generelt og demensomsorgen spesielt",null,null,{"$f":"SUM(Sirdal:Kristiansand!D79)","v":0}]
["e. Legemiddelhåndtering",null,null,{"$f":"SUM(Sirdal:Kristiansand!D80)","v":0}]
["f. Ernæring",null,null,{"$f":"SUM(Sirdal:Kristiansand!D81)","v":0}]
["g. Fritidsaktivitet med assistanse",null,null,{"$f":"SUM(Sirdal:Kristiansand!D82)","v":0}]
["h. Kulturopplevelser",null,null,{"$f":"SUM(Sirdal:Kristiansand!D83)","v":0}]
["i. Annet",null,null,{"$f":"SUM(Sirdal:Kristiansand!D84)","v":0}]
["SUM (5.1) :",null,null,{"$f":"SUM(D76:D84)","v":0}]
["6. Tilskudd til Innovasjonsprosjekter"]
["6.1. Totalt søkt beløp  ",null,null,{"$f":"SUM(Sirdal:Kristiansand!D87)","v":0}]
["6.2. Utbetalt beløp  ",null,null,{"$f":"SUM(Sirdal:Kristiansand!D88)","v":0}]
["6.3. Ubenyttet beløp ",null,null,{"$f":"SUM(Sirdal:Kristiansand!D89)","v":0}]
["7. Nasjonalt velferdsteknologiprogram - innføring av velferdsteknologiske løsninger"]
["7.1. Totalt søkt beløp",null,null,{"$f":"SUM(Sirdal:Kristiansand!D91)","v":0}]
["7.2. Utbetalt beløp",null,null,{"$f":"SUM(Sirdal:Kristiansand!D92)","v":0}]
["7.3. Ubenyttet beløp",null,null,{"$f":"SUM(Sirdal:Kristiansand!D93)","v":0}]

{"sheet":"Sirdal","index":1,"n_rows":93,"n_cols":4,"rows_kept":93,"cut":false,"hidden":false,"merged":[]}
["1. Måloppnåelse (antall ansatte) til Kompetansetiltak (grunn-, videre- og etterutdanning)"]
["1.1. Videregående skole, fag- og yrkesopplæring innen helse (fagbrev)"]
["Utdanningstype","Fullført utdanning ","Under utdanning, men ikke fullført","Samlet antall fullførte og under utdanning "]
["a. Helsefagarbeider",0,0,{"$f":"B4+C4","v":0}]
["b. Annen utdanning på videregående skolenivå ",0,0,{"$f":"B5+C5","v":0}]
["Sum (1.1) :",{"$f":"SUM(B4:B5)","v":0},{"$f":"SUM(C4:C5)","v":0},0]
["1.2. Fagskoleutdanning"]
["a. Psykisk helsearbeid og rusarbeid",0,0,0]
["b. Eldreomsorg/demens",0,0,0]
["c. Habilitering/rehabilitering",0,0,0]
["d. Kreftomsorg/lindrende behandling",0,0,0]
["e. Veiledning",0,0,0]
["f. Annen fagskoleutdanning ",0,0,0]
["Sum (1.2) :",{"$f":"SUM(B8:B13)","v":0},{"$f":"SUM(C8:C13)","v":0},0]
["1.3. Bachelorutdanning helse- og sosialfag"]
["a. Sykepleie",0,0,0]
["b. Vernepleie",0,0,0]
["c. Fysioterapi",0,0,0]
["d. Ergoterapi",0,0,0]
["e. Sosialt arbeid (sosionom)",0,0,0]
["f. Barnevernspedagogikk",0,0,0]
["g. Annen bachelorutdanning",0,0,0]
["Sum (1.3) :",{"$f":"SUM(B16:B22)","v":0},{"$f":"SUM(C16:C22)","v":0},0]
["1.4. Videreutdanning og mastergradutdanning (påbygg bachelorutdanning)"]
["a. Psykisk helsearbeid og rusarbeid",0,0,0]
["b. Tverrfaglig videreutdanning i psykososialt arbeid med barn og unge",0,0,0]
["c. Eldreomsorg/demens",0,0,0]
["d. Kreftomsorg/lindrende pleie",0,0,0]
["e. Habilitering/rehabilitering",0,0,0]
["f. Veiledning",0,0,0]
["g. Lederutdanning",0,0,0]
["h. Annen videreutdanning og/eller masterutdanning ",0,0,0]
["Sum (1.4) :",{"$f":"SUM(B25:B32)","v":0},{"$f":"SUM(C25:C32)","v":0},0]
["1.5. ABC-opplæring"]
["a. Demensomsorgens ABC",0,0,0]
["b. Eldreomsorgens ABC",0,0,0]
["c. Mitt livs ABC",0,0,{"$f":"B37+C37","v":0}]
["d. Velferdsteknologien ABC",0,0,0]
["e. ABC musikkbasert miljøbehandling",0,0,0]
["Sum (1.5) :",{"$f":"SUM(B35:B39)","v":0},{"$f":"SUM(C35:C39)","v":0},0]
["1.6. Annen internopplæring / korte etterutdanninger mv. "]
["a.  Innen psykisk helsearbeid og rusfeltet",0,0,0]
["b. Innen eldreomsorg og demens",null,null,0]
["c. Annet høyt prioritert internopplæring/etterutdanning",0,0,0]
["Sum (1.6) :",{"$f":"SUM(B42:B44)","v":0},{"$f":"SUM(C42:C44)","v":0},0]
[" 1.7. Andre kompetansehevende tiltak med midler direkte fra fylkesmannen  (utdyp i skriftlig del av rapporteringsskjema)"]
["a. Fylkeskoordinator til prosjekt Menn i helse  (ikke for kommuner)",0,0,0]
["b. Desentralisert utdanning fra høgskoler/universiteter (ikke for kommuner)",0,0,0]
["c. Annet  (ikke forkommuner)",0,0,0]
["Sum (1.7) :",{"$f":"SUM(B47:B49)","v":0},{"$f":"SUM(C47:C49)","v":0},{"$f":"B50+C50","v":0}]
["Kompetansetiltak (måloppnåelse) Totalt :",{"$f":"B6+B14+B23+B33+B40+B45+B50","v":0},{"$f":"C6+C14+C23+C33+C40+C45+C50","v":0},{"$f":"B51+C51","v":0}]
["2. Tilskudd til Kompetansetiltak"]
["2.1. Totalt søkt beløp (Kompetansetiltak totalt)",null,null,0]
["2.2. Utbetalt beløp (Kompetansetiltak totalt)",null,null,{"$f":"SUM(D55:D61)","v":0}]
["a. Videregående skole, fag- og yrkesopplæring innen helse (fagbrev)",null,null,0]
["b. Fagskoleutdanning",null,null,0]
["c. Bachelorutdanning helse- og sosialfag",null,null,0]
["d.  Videreutdanning og mastergradutdanning (påbygg bachelorutdanning)",null,null,0]
["e. ABC-opplæring",null,null,0]
["f. Annen internopplæring / korte etterutdanninger /kurs mv. ",null,null,0]
["g. Andre Kompetansehevende tiltak. Fylkesmannen rapporterer her, ikke kommuner",null,null,0]
["2.3. Ubenyttet beløp (Kompetansetiltak totalt)",null,null,0]
["3. Opplæringstilskudd BPA (brukerstyrt personlig assistanse)"]
["3.1. Opplæringstype",null,null,"Antall personer innvilget"]
["a. Arbeidsledere som har fått tilskudd til opplæring",null,null,0]
["b. Saksbehandlere som har fått tilskudd til opplæring",null,null,0]
["c. Assistenter som har fått tilskudd til opplæring",null,null,0]
["d. Uspesifisert ",null,null,0]
["SUM (3.1) :",null,null,{"$f":"SUM(D65:D68)","v":0}]
["4. Tilskudd til BPA"]
["4.1. Totalt søkt beløp ",null,null,0]
["4.2. Utbetalt beløp  ",null,null,0]
["4.3. Ubenyttet beløp ",null,null,0]
["5. Innovasjonsprosjekter"]
["5.1. Prosjekttype",null,null,"Antall prosjekter innvilget"]
["a. Forebygging,  tidlig innsats og egenmestring",null,null,0]
["b. Habilitering og rehabilitering, herunder hverdagsrehabilitering",null,null,0]
["c. Velferdsteknologiske løsninger\n(Dette punktet gjelder ikke for øremerkede midler til \"Nasjonalt velferdsteknologiprogram- innføring av velferdsteknologiskeløsninger (Omsorg 2020)\"\nRapporteringen for velferdsteknologiprogram skal gjøres under punkt 7) ",null,null,0]
["d. Samspill med pårørende og frivillige i omsorgssektoren generelt og demensomsorgen spesielt",null,null,0]
["e. Legemiddelhåndtering",null,null,0]
["f. Ernæring",null,null,0]
["g. Fritidsaktivitet med assistanse",null,null,0]
["h. Kulturopplevelser",null,null,0]
["i. Annet",null,null,0]
["SUM (5.1) :",null,null,{"$f":"SUM(D76:D84)","v":0}]
["6. Tilskudd til Innovasjonsprosjekter"]
["6.1. Totalt søkt beløp  ",null,null,0]
["6.2. Utbetalt beløp  ",null,null,0]
["6.3. Ubenyttet beløp ",null,null,0]
["7. Nasjonalt velferdsteknologiprogram - innføring av velferdsteknologiske løsninger"]
["7.1. Totalt søkt beløp",null,null,0]
["7.2. Utbetalt beløp",null,null,0]
["7.3. Ubenyttet beløp",null,null,0]

{"sheet":"Kvinesdal","index":2,"n_rows":93,"n_cols":4,"rows_kept":93,"cut":false,"hidden":false,"merged":[]}
["1. Måloppnåelse (antall ansatte) til Kompetansetiltak (grunn-, videre- og etterutdanning)"]
["1.1. Videregående skole, fag- og yrkesopplæring innen helse (fagbrev)"]
["Utdanningstype","Fullført utdanning ","Under utdanning, men ikke fullført","Samlet antall fullførte og under utdanning "]
["a. Helsefagarbeider",0,0,{"$f":"B4+C4","v":0}]
["b. Annen utdanning på videregående skolenivå ",0,0,{"$f":"B5+C5","v":0}]
["Sum (1.1) :",{"$f":"SUM(B4:B5)","v":0},{"$f":"SUM(C4:C5)","v":0},0]
["1.2. Fagskoleutdanning"]
["a. Psykisk helsearbeid og rusarbeid",0,0,0]
["b. Eldreomsorg/demens",0,0,0]
["c. Habilitering/rehabilitering",0,0,0]
["d. Kreftomsorg/lindrende behandling",0,0,0]
["e. Veiledning",0,0,0]
["f. Annen fagskoleutdanning ",0,0,0]
["Sum (1.2) :",{"$f":"SUM(B8:B13)","v":0},{"$f":"SUM(C8:C13)","v":0},0]
["1.3. Bachelorutdanning helse- og sosialfag"]
["a. Sykepleie",0,0,0]
["b. Vernepleie",0,0,0]
["c. Fysioterapi",0,0,0]
["d. Ergoterapi",0,0,0]
["e. Sosialt arbeid (sosionom)",0,0,0]
["f. Barnevernspedagogikk",0,0,0]
["g. Annen bachelorutdanning",0,0,0]
["Sum (1.3) :",{"$f":"SUM(B16:B22)","v":0},{"$f":"SUM(C16:C22)","v":0},0]
["1.4. Videreutdanning og mastergradutdanning (påbygg bachelorutdanning)"]
["a. Psykisk helsearbeid og rusarbeid",0,0,0]
["b. Tverrfaglig videreutdanning i psykososialt arbeid med barn og unge",0,0,0]
["c. Eldreomsorg/demens",0,0,0]
["d. Kreftomsorg/lindrende pleie",0,0,0]
["e. Habilitering/rehabilitering",0,0,0]
["f. Veiledning",0,0,0]
["g. Lederutdanning",0,0,0]
["h. Annen videreutdanning og/eller masterutdanning ",0,0,0]
["Sum (1.4) :",{"$f":"SUM(B25:B32)","v":0},{"$f":"SUM(C25:C32)","v":0},0]
["1.5. ABC-opplæring"]
["a. Demensomsorgens ABC",0,0,0]
["b. Eldreomsorgens ABC",0,0,0]
["c. Mitt livs ABC",0,0,{"$f":"B37+C37","v":0}]
["d. Velferdsteknologien ABC",0,0,0]
["e. ABC musikkbasert miljøbehandling",0,0,0]
["Sum (1.5) :",{"$f":"SUM(B35:B39)","v":0},{"$f":"SUM(C35:C39)","v":0},0]
["1.6. Annen internopplæring / korte etterutdanninger mv. "]
["a.  Innen psykisk helsearbeid og rusfeltet",0,0,0]
["b. Innen eldreomsorg og demens",null,null,0]
["c. Annet høyt prioritert internopplæring/etterutdanning",0,0,0]
["Sum (1.6) :",{"$f":"SUM(B42:B44)","v":0},{"$f":"SUM(C42:C44)","v":0},0]
[" 1.7. Andre kompetansehevende tiltak med midler direkte fra fylkesmannen  (utdyp i skriftlig del av rapporteringsskjema)"]
["a. Fylkeskoordinator til prosjekt Menn i helse  (ikke for kommuner)",0,0,0]
["b. Desentralisert utdanning fra høgskoler/universiteter (ikke for kommuner)",0,0,0]
["c. Annet  (ikke forkommuner)",0,0,0]
["Sum (1.7) :",{"$f":"SUM(B47:B49)","v":0},{"$f":"SUM(C47:C49)","v":0},{"$f":"B50+C50","v":0}]
["Kompetansetiltak (måloppnåelse) Totalt :",{"$f":"B6+B14+B23+B33+B40+B45+B50","v":0},{"$f":"C6+C14+C23+C33+C40+C45+C50","v":0},{"$f":"B51+C51","v":0}]
["2. Tilskudd til Kompetansetiltak"]
["2.1. Totalt søkt beløp (Kompetansetiltak totalt)",null,null,0]
["2.2. Utbetalt beløp (Kompetansetiltak totalt)",null,null,{"$f":"SUM(D55:D61)","v":0}]
["a. Videregående skole, fag- og yrkesopplæring innen helse (fagbrev)",null,null,0]
["b. Fagskoleutdanning",null,null,0]
["c. Bachelorutdanning helse- og sosialfag",null,null,0]
["d.  Videreutdanning og mastergradutdanning (påbygg bachelorutdanning)",null,null,0]
["e. ABC-opplæring",null,null,0]
["f. Annen internopplæring / korte etterutdanninger /kurs mv. ",null,null,0]
["g. Andre Kompetansehevende tiltak. Fylkesmannen rapporterer her, ikke kommuner",null,null,0]
["2.3. Ubenyttet beløp (Kompetansetiltak totalt)",null,null,0]
["3. Opplæringstilskudd BPA (brukerstyrt personlig assistanse)"]
["3.1. Opplæringstype",null,null,"Antall personer innvilget"]
["a. Arbeidsledere som har fått tilskudd til opplæring",null,null,0]
["b. Saksbehandlere som har fått tilskudd til opplæring",null,null,0]
["c. Assistenter som har fått tilskudd til opplæring",null,null,0]
["d. Uspesifisert ",null,null,0]
["SUM (3.1) :",null,null,{"$f":"SUM(D65:D68)","v":0}]
["4. Tilskudd til BPA"]
["4.1. Totalt søkt beløp ",null,null,0]
["4.2. Utbetalt beløp  ",null,null,0]
["4.3. Ubenyttet beløp ",null,null,0]
["5. Innovasjonsprosjekter"]
["5.1. Prosjekttype",null,null,"Antall prosjekter innvilget"]
["a. Forebygging,  tidlig innsats og egenmestring",null,null,0]
["b. Habilitering og rehabilitering, herunder hverdagsrehabilitering",null,null,0]
["c. Velferdsteknologiske løsninger\n(Dette punktet gjelder ikke for øremerkede midler til \"Nasjonalt velferdsteknologiprogram- innføring av velferdsteknologiskeløsninger (Omsorg 2020)\"\nRapporteringen for velferdsteknologiprogram skal gjøres under punkt 7) ",null,null,0]
["d. Samspill med pårørende og frivillige i omsorgssektoren generelt og demensomsorgen spesielt",null,null,0]
["e. Legemiddelhåndtering",null,null,0]
["f. Ernæring",null,null,0]
["g. Fritidsaktivitet med assistanse",null,null,0]
["h. Kulturopplevelser",null,null,0]
["i. Annet",null,null,0]
["SUM (5.1) :",null,null,{"$f":"SUM(D76:D84)","v":0}]
["6. Tilskudd til Innovasjonsprosjekter"]
["6.1. Totalt søkt beløp  ",null,null,0]
["6.2. Utbetalt beløp  ",null,null,0]
["6.3. Ubenyttet beløp ",null,null,0]
["7. Nasjonalt velferdsteknologiprogram - innføring av velferdsteknologiske løsninger"]
["7.1. Totalt søkt beløp",null,null,0]
["7.2. Utbetalt beløp",null,null,0]
["7.3. Ubenyttet beløp",null,null,0]

{"sheet":"Hægebostad","index":3,"n_rows":93,"n_cols":4,"rows_kept":93,"cut":false,"hidden":false,"merged":[]}
["1. Måloppnåelse (antall ansatte) til Kompetansetiltak (grunn-, videre- og etterutdanning)"]
["1.1. Videregående skole, fag- og yrkesopplæring innen helse (fagbrev)"]
["Utdanningstype","Fullført utdanning ","Under utdanning, men ikke fullført","Samlet antall fullførte og under utdanning "]
["a. Helsefagarbeider",0,0,{"$f":"B4+C4","v":0}]
["b. Annen utdanning på videregående skolenivå ",0,0,{"$f":"B5+C5","v":0}]
["Sum (1.1) :",{"$f":"SUM(B4:B5)","v":0},{"$f":"SUM(C4:C5)","v":0},0]
["1.2. Fagskoleutdanning"]
["a. Psykisk helsearbeid og rusarbeid",0,0,0]
["b. Eldreomsorg/demens",0,0,0]
["c. Habilitering/rehabilitering",0,0,0]
["d. Kreftomsorg/lindrende behandling",0,0,0]
["e. Veiledning",0,0,0]
["f. Annen fagskoleutdanning ",0,0,0]
["Sum (1.2) :",{"$f":"SUM(B8:B13)","v":0},{"$f":"SUM(C8:C13)","v":0},0]
["1.3. Bachelorutdanning helse- og sosialfag"]
["a. Sykepleie",0,0,0]
["b. Vernepleie",0,0,0]
["c. Fysioterapi",0,0,0]
["d. Ergoterapi",0,0,0]
["e. Sosialt arbeid (sosionom)",0,0,0]
["f. Barnevernspedagogikk",0,0,0]
["g. Annen bachelorutdanning",0,0,0]
["Sum (1.3) :",{"$f":"SUM(B16:B22)","v":0},{"$f":"SUM(C16:C22)","v":0},0]
["1.4. Videreutdanning og mastergradutdanning (påbygg bachelorutdanning)"]
["a. Psykisk helsearbeid og rusarbeid",0,0,0]
["b. Tverrfaglig videreutdanning i psykososialt arbeid med barn og unge",0,0,0]
["c. Eldreomsorg/demens",0,0,0]
["d. Kreftomsorg/lindrende pleie",0,0,0]
["e. Habilitering/rehabilitering",0,0,0]
["f. Veiledning",0,0,0]
["g. Lederutdanning",0,0,0]
["h. Annen videreutdanning og/eller masterutdanning ",0,0,0]
["Sum (1.4) :",{"$f":"SUM(B25:B32)","v":0},{"$f":"SUM(C25:C32)","v":0},0]
["1.5. ABC-opplæring"]
["a. Demensomsorgens ABC",0,0,0]
["b. Eldreomsorgens ABC",0,0,0]
["c. Mitt livs ABC",0,0,{"$f":"B37+C37","v":0}]
["d. Velferdsteknologien ABC",0,0,0]
["e. ABC musikkbasert miljøbehandling",0,0,0]
["Sum (1.5) :",{"$f":"SUM(B35:B39)","v":0},{"$f":"SUM(C35:C39)","v":0},0]
["1.6. Annen internopplæring / korte etterutdanninger mv. "]
["a.  Innen psykisk helsearbeid og rusfeltet",0,0,0]
["b. Innen eldreomsorg og demens",null,null,0]
["c. Annet høyt prioritert internopplæring/etterutdanning",0,0,0]
["Sum (1.6) :",{"$f":"SUM(B42:B44)","v":0},{"$f":"SUM(C42:C44)","v":0},0]
[" 1.7. Andre kompetansehevende tiltak med midler direkte fra fylkesmannen  (utdyp i skriftlig del av rapporteringsskjema)"]
["a. Fylkeskoordinator til prosjekt Menn i helse  (ikke for kommuner)",0,0,0]
["b. Desentralisert utdanning fra høgskoler/universiteter (ikke for kommuner)",0,0,0]
["c. Annet  (ikke forkommuner)",0,0,0]
["Sum (1.7) :",{"$f":"SUM(B47:B49)","v":0},{"$f":"SUM(C47:C49)","v":0},{"$f":"B50+C50","v":0}]
["Kompetansetiltak (måloppnåelse) Totalt :",{"$f":"B6+B14+B23+B33+B40+B45+B50","v":0},{"$f":"C6+C14+C23+C33+C40+C45+C50","v":0},{"$f":"B51+C51","v":0}]
["2. Tilskudd til Kompetansetiltak"]
["2.1. Totalt søkt beløp (Kompetansetiltak totalt)",null,null,0]
["2.2. Utbetalt beløp (Kompetansetiltak totalt)",null,null,{"$f":"SUM(D55:D61)","v":0}]
["a. Videregående skole, fag- og yrkesopplæring innen helse (fagbrev)",null,null,0]
["b. Fagskoleutdanning",null,null,0]
["c. Bachelorutdanning helse- og sosialfag",null,null,0]
["d.  Videreutdanning og mastergradutdanning (påbygg bachelorutdanning)",null,null,0]
["e. ABC-opplæring",null,null,0]
["f. Annen internopplæring / korte etterutdanninger /kurs mv. ",null,null,0]
["g. Andre Kompetansehevende tiltak. Fylkesmannen rapporterer her, ikke kommuner",null,null,0]
["2.3. Ubenyttet beløp (Kompetansetiltak totalt)",null,null,0]
["3. Opplæringstilskudd BPA (brukerstyrt personlig assistanse)"]
["3.1. Opplæringstype",null,null,"Antall personer innvilget"]
["a. Arbeidsledere som har fått tilskudd til opplæring",null,null,0]
["b. Saksbehandlere som har fått tilskudd til opplæring",null,null,0]
["c. Assistenter som har fått tilskudd til opplæring",null,null,0]
["d. Uspesifisert ",null,null,0]
["SUM (3.1) :",null,null,{"$f":"SUM(D65:D68)","v":0}]
["4. Tilskudd til BPA"]
["4.1. Totalt søkt beløp ",null,null,0]
["4.2. Utbetalt beløp  ",null,null,0]
["4.3. Ubenyttet beløp ",null,null,0]
["5. Innovasjonsprosjekter"]
["5.1. Prosjekttype",null,null,"Antall prosjekter innvilget"]
["a. Forebygging,  tidlig innsats og egenmestring",null,null,0]
["b. Habilitering og rehabilitering, herunder hverdagsrehabilitering",null,null,0]
["c. Velferdsteknologiske løsninger\n(Dette punktet gjelder ikke for øremerkede midler til \"Nasjonalt velferdsteknologiprogram- innføring av velferdsteknologiskeløsninger (Omsorg 2020)\"\nRapporteringen for velferdsteknologiprogram skal gjøres under punkt 7) ",null,null,0]
["d. Samspill med pårørende og frivillige i omsorgssektoren generelt og demensomsorgen spesielt",null,null,0]
["e. Legemiddelhåndtering",null,null,0]
["f. Ernæring",null,null,0]
["g. Fritidsaktivitet med assistanse",null,null,0]
["h. Kulturopplevelser",null,null,0]
["i. Annet",null,null,0]
["SUM (5.1) :",null,null,{"$f":"SUM(D76:D84)","v":0}]
["6. Tilskudd til Innovasjonsprosjekter"]
["6.1. Totalt søkt beløp  ",null,null,0]
["6.2. Utbetalt beløp  ",null,null,0]
["6.3. Ubenyttet beløp ",null,null,0]
["7. Nasjonalt velferdsteknologiprogram - innføring av velferdsteknologiske løsninger"]
["7.1. Totalt søkt beløp",null,null,0]
["7.2. Utbetalt beløp",null,null,0]
["7.3. Ubenyttet beløp",null,null,0]

{"sheet":"Lyngdal","index":4,"n_rows":93,"n_cols":4,"rows_kept":93,"cut":false,"hidden":false,"merged":[]}
["1. Måloppnåelse (antall ansatte) til Kompetansetiltak (grunn-, videre- og etterutdanning)"]
["1.1. Videregående skole, fag- og yrkesopplæring innen helse (fagbrev)"]
["Utdanningstype","Fullført utdanning ","Under utdanning, men ikke fullført","Samlet antall fullførte og under utdanning "]
["a. Helsefagarbeider",0,0,{"$f":"B4+C4","v":0}]
["b. Annen utdanning på videregående skolenivå ",0,0,{"$f":"B5+C5","v":0}]
["Sum (1.1) :",{"$f":"SUM(B4:B5)","v":0},{"$f":"SUM(C4:C5)","v":0},0]
["1.2. Fagskoleutdanning"]
["a. Psykisk helsearbeid og rusarbeid",0,0,0]
["b. Eldreomsorg/demens",0,0,0]
["c. Habilitering/rehabilitering",0,0,0]
["d. Kreftomsorg/lindrende behandling",0,0,0]
["e. Veiledning",0,0,0]
["f. Annen fagskoleutdanning ",0,0,0]
["Sum (1.2) :",{"$f":"SUM(B8:B13)","v":0},{"$f":"SUM(C8:C13)","v":0},0]
["1.3. Bachelorutdanning helse- og sosialfag"]
["a. Sykepleie",0,0,0]
["b. Vernepleie",0,0,0]
["c. Fysioterapi",0,0,0]
["d. Ergoterapi",0,0,0]
["e. Sosialt arbeid (sosionom)",0,0,0]
["f. Barnevernspedagogikk",0,0,0]
["g. Annen bachelorutdanning",0,0,0]
["Sum (1.3) :",{"$f":"SUM(B16:B22)","v":0},{"$f":"SUM(C16:C22)","v":0},0]
["1.4. Videreutdanning og mastergradutdanning (påbygg bachelorutdanning)"]
["a. Psykisk helsearbeid og rusarbeid",0,0,0]
["b. Tverrfaglig videreutdanning i psykososialt arbeid med barn og unge",0,0,0]
["c. Eldreomsorg/demens",0,0,0]
["d. Kreftomsorg/lindrende pleie",0,0,0]
["e. Habilitering/rehabilitering",0,0,0]
["f. Veiledning",0,0,0]
["g. Lederutdanning",0,0,0]
["h. Annen videreutdanning og/eller masterutdanning ",0,0,0]
["Sum (1.4) :",{"$f":"SUM(B25:B32)","v":0},{"$f":"SUM(C25:C32)","v":0},0]
["1.5. ABC-opplæring"]
["a. Demensomsorgens ABC",0,0,0]
["b. Eldreomsorgens ABC",0,0,0]
["c. Mitt livs ABC",0,0,{"$f":"B37+C37","v":0}]
["d. Velferdsteknologien ABC",0,0,0]
["e. ABC musikkbasert miljøbehandling",0,0,0]
["Sum (1.5) :",{"$f":"SUM(B35:B39)","v":0},{"$f":"SUM(C35:C39)","v":0},0]
["1.6. Annen internopplæring / korte etterutdanninger mv. "]
["a.  Innen psykisk helsearbeid og rusfeltet",0,0,0]
["b. Innen eldreomsorg og demens",null,null,0]
["c. Annet høyt prioritert internopplæring/etterutdanning",0,0,0]
["Sum (1.6) :",{"$f":"SUM(B42:B44)","v":0},{"$f":"SUM(C42:C44)","v":0},0]
[" 1.7. Andre kompetansehevende tiltak med midler direkte fra fylkesmannen  (utdyp i skriftlig del av rapporteringsskjema)"]
["a. Fylkeskoordinator til prosjekt Menn i helse  (ikke for kommuner)",0,0,0]
["b. Desentralisert utdanning fra høgskoler/universiteter (ikke for kommuner)",0,0,0]
["c. Annet  (ikke forkommuner)",0,0,0]
["Sum (1.7) :",{"$f":"SUM(B47:B49)","v":0},{"$f":"SUM(C47:C49)","v":0},{"$f":"B50+C50","v":0}]
["Kompetansetiltak (måloppnåelse) Totalt :",{"$f":"B6+B14+B23+B33+B40+B45+B50","v":0},{"$f":"C6+C14+C23+C33+C40+C45+C50","v":0},{"$f":"B51+C51","v":0}]
["2. Tilskudd til Kompetansetiltak"]
["2.1. Totalt søkt beløp (Kompetansetiltak totalt)",null,null,0]
["2.2. Utbetalt beløp (Kompetansetiltak totalt)",null,null,{"$f":"SUM(D55:D61)","v":0}]
["a. Videregående skole, fag- og yrkesopplæring innen helse (fagbrev)",null,null,0]
["b. Fagskoleutdanning",null,null,0]
["c. Bachelorutdanning helse- og sosialfag",null,null,0]
["d.  Videreutdanning og mastergradutdanning (påbygg bachelorutdanning)",null,null,0]
["e. ABC-opplæring",null,null,0]
["f. Annen internopplæring / korte etterutdanninger /kurs mv. ",null,null,0]
["g. Andre Kompetansehevende tiltak. Fylkesmannen rapporterer her, ikke kommuner",null,null,0]
["2.3. Ubenyttet beløp (Kompetansetiltak totalt)",null,null,0]
["3. Opplæringstilskudd BPA (brukerstyrt personlig assistanse)"]
["3.1. Opplæringstype",null,null,"Antall personer innvilget"]
["a. Arbeidsledere som har fått tilskudd til opplæring",null,null,0]
["b. Saksbehandlere som har fått tilskudd til opplæring",null,null,0]
["c. Assistenter som har fått tilskudd til opplæring",null,null,0]
["d. Uspesifisert ",null,null,0]
["SUM (3.1) :",null,null,{"$f":"SUM(D65:D68)","v":0}]
["4. Tilskudd til BPA"]
["4.1. Totalt søkt beløp ",null,null,0]
["4.2. Utbetalt beløp  ",null,null,0]
["4.3. Ubenyttet beløp ",null,null,0]
["5. Innovasjonsprosjekter"]
["5.1. Prosjekttype",null,null,"Antall prosjekter innvilget"]
["a. Forebygging,  tidlig innsats og egenmestring",null,null,0]
["b. Habilitering og rehabilitering, herunder hverdagsrehabilitering",null,null,0]
["c. Velferdsteknologiske løsninger\n(Dette punktet gjelder ikke for øremerkede midler til \"Nasjonalt velferdsteknologiprogram- innføring av velferdsteknologiskeløsninger (Omsorg 2020)\"\nRapporteringen for velferdsteknologiprogram skal gjøres under punkt 7) ",null,null,0]
["d. Samspill med pårørende og frivillige i omsorgssektoren generelt og demensomsorgen spesielt",null,null,0]
["e. Legemiddelhåndtering",null,null,0]
["f. Ernæring",null,null,0]
["g. Fritidsaktivitet med assistanse",null,null,0]
["h. Kulturopplevelser",null,null,0]
["i. Annet",null,null,0]
["SUM (5.1) :",null,null,{"$f":"SUM(D76:D84)","v":0}]
["6. Tilskudd til Innovasjonsprosjekter"]
["6.1. Totalt søkt beløp  ",null,null,0]
["6.2. Utbetalt beløp  ",null,null,0]
["6.3. Ubenyttet beløp ",null,null,0]
["7. Nasjonalt velferdsteknologiprogram - innføring av velferdsteknologiske løsninger"]
["7.1. Totalt søkt beløp",null,null,0]
["7.2. Utbetalt beløp",null,null,0]
["7.3. Ubenyttet beløp",null,null,0]

{"sheet":"Lindesnes","index":5,"n_rows":93,"n_cols":4,"rows_kept":93,"cut":false,"hidden":false,"merged":[]}
["1. Måloppnåelse (antall ansatte) til Kompetansetiltak (grunn-, videre- og etterutdanning)"]
["1.1. Videregående skole, fag- og yrkesopplæring innen helse (fagbrev)"]
["Utdanningstype","Fullført utdanning ","Under utdanning, men ikke fullført","Samlet antall fullførte og under utdanning "]
["a. Helsefagarbeider",0,0,{"$f":"B4+C4","v":0}]
["b. Annen utdanning på videregående skolenivå ",0,0,{"$f":"B5+C5","v":0}]
["Sum (1.1) :",{"$f":"SUM(B4:B5)","v":0},{"$f":"SUM(C4:C5)","v":0},0]
["1.2. Fagskoleutdanning"]
["a. Psykisk helsearbeid og rusarbeid",0,0,0]
["b. Eldreomsorg/demens",0,0,0]
["c. Habilitering/rehabilitering",0,0,0]
["d. Kreftomsorg/lindrende behandling",0,0,0]
["e. Veiledning",0,0,0]
["f. Annen fagskoleutdanning ",0,0,0]
["Sum (1.2) :",{"$f":"SUM(B8:B13)","v":0},{"$f":"SUM(C8:C13)","v":0},0]
["1.3. Bachelorutdanning helse- og sosialfag"]
["a. Sykepleie",0,0,0]
["b. Vernepleie",0,0,0]
["c. Fysioterapi",0,0,0]
["d. Ergoterapi",0,0,0]
["e. Sosialt arbeid (sosionom)",0,0,0]
["f. Barnevernspedagogikk",0,0,0]
["g. Annen bachelorutdanning",0,0,0]
["Sum (1.3) :",{"$f":"SUM(B16:B22)","v":0},{"$f":"SUM(C16:C22)","v":0},0]
["1.4. Videreutdanning og mastergradutdanning (påbygg bachelorutdanning)"]
["a. Psykisk helsearbeid og rusarbeid",0,0,0]
["b. Tverrfaglig videreutdanning i psykososialt arbeid med barn og unge",0,0,0]
["c. Eldreomsorg/demens",0,0,0]
["d. Kreftomsorg/lindrende pleie",0,0,0]
["e. Habilitering/rehabilitering",0,0,0]
["f. Veiledning",0,0,0]
["g. Lederutdanning",0,0,0]
["h. Annen videreutdanning og/eller masterutdanning ",0,0,0]
["Sum (1.4) :",{"$f":"SUM(B25:B32)","v":0},{"$f":"SUM(C25:C32)","v":0},0]
["1.5. ABC-opplæring"]
["a. Demensomsorgens ABC",0,0,0]
["b. Eldreomsorgens ABC",0,0,0]
["c. Mitt livs ABC",0,0,{"$f":"B37+C37","v":0}]
["d. Velferdsteknologien ABC",0,0,0]
["e. ABC musikkbasert miljøbehandling",0,0,0]
["Sum (1.5) :",{"$f":"SUM(B35:B39)","v":0},{"$f":"SUM(C35:C39)","v":0},0]
["1.6. Annen internopplæring / korte etterutdanninger mv. "]
["a.  Innen psykisk helsearbeid og rusfeltet",0,0,0]
["b. Innen eldreomsorg og demens",null,null,0]
["c. Annet høyt prioritert internopplæring/etterutdanning",0,0,0]
["Sum (1.6) :",{"$f":"SUM(B42:B44)","v":0},{"$f":"SUM(C42:C44)","v":0},0]
[" 1.7. Andre kompetansehevende tiltak med midler direkte fra fylkesmannen  (utdyp i skriftlig del av rapporteringsskjema)"]
["a. Fylkeskoordinator til prosjekt Menn i helse  (ikke for kommuner)",0,0,0]
["b. Desentralisert utdanning fra høgskoler/universiteter (ikke for kommuner)",0,0,0]
["c. Annet  (ikke forkommuner)",0,0,0]
["Sum (1.7) :",{"$f":"SUM(B47:B49)","v":0},{"$f":"SUM(C47:C49)","v":0},{"$f":"B50+C50","v":0}]
["Kompetansetiltak (måloppnåelse) Totalt :",{"$f":"B6+B14+B23+B33+B40+B45+B50","v":0},{"$f":"C6+C14+C23+C33+C40+C45+C50","v":0},{"$f":"B51+C51","v":0}]
["2. Tilskudd til Kompetansetiltak"]
["2.1. Totalt søkt beløp (Kompetansetiltak totalt)",null,null,0]
["2.2. Utbetalt beløp (Kompetansetiltak totalt)",null,null,{"$f":"SUM(D55:D61)","v":0}]
["a. Videregående skole, fag- og yrkesopplæring innen helse (fagbrev)",null,null,0]
["b. Fagskoleutdanning",null,null,0]
["c. Bachelorutdanning helse- og sosialfag",null,null,0]
["d.  Videreutdanning og mastergradutdanning (påbygg bachelorutdanning)",null,null,0]
["e. ABC-opplæring",null,null,0]
["f. Annen internopplæring / korte etterutdanninger /kurs mv. ",null,null,0]
["g. Andre Kompetansehevende tiltak. Fylkesmannen rapporterer her, ikke kommuner",null,null,0]
["2.3. Ubenyttet beløp (Kompetansetiltak totalt)",null,null,0]
["3. Opplæringstilskudd BPA (brukerstyrt personlig assistanse)"]
["3.1. Opplæringstype",null,null,"Antall personer innvilget"]
["a. Arbeidsledere som har fått tilskudd til opplæring",null,null,0]
["b. Saksbehandlere som har fått tilskudd til opplæring",null,null,0]
["c. Assistenter som har fått tilskudd til opplæring",null,null,0]
["d. Uspesifisert ",null,null,0]
["SUM (3.1) :",null,null,{"$f":"SUM(D65:D68)","v":0}]
["4. Tilskudd til BPA"]
["4.1. Totalt søkt beløp ",null,null,0]
["4.2. Utbetalt beløp  ",null,null,0]
["4.3. Ubenyttet beløp ",null,null,0]
["5. Innovasjonsprosjekter"]
["5.1. Prosjekttype",null,null,"Antall prosjekter innvilget"]
["a. Forebygging,  tidlig innsats og egenmestring",null,null,0]
["b. Habilitering og rehabilitering, herunder hverdagsrehabilitering",null,null,0]
["c. Velferdsteknologiske løsninger\n(Dette punktet gjelder ikke for øremerkede midler til \"Nasjonalt velferdsteknologiprogram- innføring av velferdsteknologiskeløsninger (Omsorg 2020)\"\nRapporteringen for velferdsteknologiprogram skal gjøres under punkt 7) ",null,null,0]
["d. Samspill med pårørende og frivillige i omsorgssektoren generelt og demensomsorgen spesielt",null,null,0]
["e. Legemiddelhåndtering",null,null,0]
["f. Ernæring",null,null,0]
["g. Fritidsaktivitet med assistanse",null,null,0]
["h. Kulturopplevelser",null,null,0]
["i. Annet",null,null,0]
["SUM (5.1) :",null,null,{"$f":"SUM(D76:D84)","v":0}]
["6. Tilskudd til Innovasjonsprosjekter"]
["6.1. Totalt søkt beløp  ",null,null,0]
["6.2. Utbetalt beløp  ",null,null,0]
["6.3. Ubenyttet beløp ",null,null,0]
["7. Nasjonalt velferdsteknologiprogram - innføring av velferdsteknologiske løsninger"]
["7.1. Totalt søkt beløp",null,null,0]
["7.2. Utbetalt beløp",null,null,0]
["7.3. Ubenyttet beløp",null,null,0]

{"sheet":"Audnedal","index":6,"n_rows":93,"n_cols":4,"rows_kept":93,"cut":false,"hidden":false,"merged":[]}
["1. Måloppnåelse (antall ansatte) til Kompetansetiltak (grunn-, videre- og etterutdanning)"]
["1.1. Videregående skole, fag- og yrkesopplæring innen helse (fagbrev)"]
["Utdanningstype","Fullført utdanning ","Under utdanning, men ikke fullført","Samlet antall fullførte og under utdanning "]
["a. Helsefagarbeider",0,0,{"$f":"B4+C4","v":0}]
["b. Annen utdanning på videregående skolenivå ",0,0,{"$f":"B5+C5","v":0}]
["Sum (1.1) :",{"$f":"SUM(B4:B5)","v":0},{"$f":"SUM(C4:C5)","v":0},0]
["1.2. Fagskoleutdanning"]
["a. Psykisk helsearbeid og rusarbeid",0,0,0]
["b. Eldreomsorg/demens",0,0,0]
["c. Habilitering/rehabilitering",0,0,0]
["d. Kreftomsorg/lindrende behandling",0,0,0]
["e. Veiledning",0,0,0]
["f. Annen fagskoleutdanning ",0,0,0]
["Sum (1.2) :",{"$f":"SUM(B8:B13)","v":0},{"$f":"SUM(C8:C13)","v":0},0]
["1.3. Bachelorutdanning helse- og sosialfag"]
["a. Sykepleie",0,0,0]
["b. Vernepleie",0,0,0]
["c. Fysioterapi",0,0,0]
["d. Ergoterapi",0,0,0]
["e. Sosialt arbeid (sosionom)",0,0,0]
["f. Barnevernspedagogikk",0,0,0]
["g. Annen bachelorutdanning",0,0,0]
["Sum (1.3) :",{"$f":"SUM(B16:B22)","v":0},{"$f":"SUM(C16:C22)","v":0},0]
["1.4. Videreutdanning og mastergradutdanning (påbygg bachelorutdanning)"]
["a. Psykisk helsearbeid og rusarbeid",0,0,0]
["b. Tverrfaglig videreutdanning i psykososialt arbeid med barn og unge",0,0,0]
["c. Eldreomsorg/demens",0,0,0]
["d. Kreftomsorg/lindrende pleie",0,0,0]
["e. Habilitering/rehabilitering",0,0,0]
["f. Veiledning",0,0,0]
["g. Lederutdanning",0,0,0]
["h. Annen videreutdanning og/eller masterutdanning ",0,0,0]
["Sum (1.4) :",{"$f":"SUM(B25:B32)","v":0},{"$f":"SUM(C25:C32)","v":0},0]
["1.5. ABC-opplæring"]
["a. Demensomsorgens ABC",0,0,0]
["b. Eldreomsorgens ABC",0,0,0]
["c. Mitt livs ABC",0,0,{"$f":"B37+C37","v":0}]
["d. Velferdsteknologien ABC",0,0,0]
["e. ABC musikkbasert miljøbehandling",0,0,0]
["Sum (1.5) :",{"$f":"SUM(B35:B39)","v":0},{"$f":"SUM(C35:C39)","v":0},0]
["1.6. Annen internopplæring / korte etterutdanninger mv. "]
["a.  Innen psykisk helsearbeid og rusfeltet",0,0,0]
["b. Innen eldreomsorg og demens",null,null,0]
["c. Annet høyt prioritert internopplæring/etterutdanning",0,0,0]
["Sum (1.6) :",{"$f":"SUM(B42:B44)","v":0},{"$f":"SUM(C42:C44)","v":0},0]
[" 1.7. Andre kompetansehevende tiltak med midler direkte fra fylkesmannen  (utdyp i skriftlig del av rapporteringsskjema)"]
["a. Fylkeskoordinator til prosjekt Menn i helse  (ikke for kommuner)",0,0,0]
["b. Desentralisert utdanning fra høgskoler/universiteter (ikke for kommuner)",0,0,0]
["c. Annet  (ikke forkommuner)",0,0,0]
["Sum (1.7) :",{"$f":"SUM(B47:B49)","v":0},{"$f":"SUM(C47:C49)","v":0},{"$f":"B50+C50","v":0}]
["Kompetansetiltak (måloppnåelse) Totalt :",{"$f":"B6+B14+B23+B33+B40+B45+B50","v":0},{"$f":"C6+C14+C23+C33+C40+C45+C50","v":0},{"$f":"B51+C51","v":0}]
["2. Tilskudd til Kompetansetiltak"]
["2.1. Totalt søkt beløp (Kompetansetiltak totalt)",null,null,0]
["2.2. Utbetalt beløp (Kompetansetiltak totalt)",null,null,{"$f":"SUM(D55:D61)","v":0}]
["a. Videregående skole, fag- og yrkesopplæring innen helse (fagbrev)",null,null,0]
["b. Fagskoleutdanning",null,null,0]
["c. Bachelorutdanning helse- og sosialfag",null,null,0]
["d.  Videreutdanning og mastergradutdanning (påbygg bachelorutdanning)",null,null,0]
["e. ABC-opplæring",null,null,0]
["f. Annen internopplæring / korte etterutdanninger /kurs mv. ",null,null,0]
["g. Andre Kompetansehevende tiltak. Fylkesmannen rapporterer her, ikke kommuner",null,null,0]
["2.3. Ubenyttet beløp (Kompetansetiltak totalt)",null,null,0]
["3. Opplæringstilskudd BPA (brukerstyrt personlig assistanse)"]
["3.1. Opplæringstype",null,null,"Antall personer innvilget"]
["a. Arbeidsledere som har fått tilskudd til opplæring",null,null,0]
["b. Saksbehandlere som har fått tilskudd til opplæring",null,null,0]
["c. Assistenter som har fått tilskudd til opplæring",null,null,0]
["d. Uspesifisert ",null,null,0]
["SUM (3.1) :",null,null,{"$f":"SUM(D65:D68)","v":0}]
["4. Tilskudd til BPA"]
["4.1. Totalt søkt beløp ",null,null,0]
["4.2. Utbetalt beløp  ",null,null,0]
["4.3. Ubenyttet beløp ",null,null,0]
["5. Innovasjonsprosjekter"]
["5.1. Prosjekttype",null,null,"Antall prosjekter innvilget"]
["a. Forebygging,  tidlig innsats og egenmestring",null,null,0]
["b. Habilitering og rehabilitering, herunder hverdagsrehabilitering",null,null,0]
["c. Velferdsteknologiske løsninger\n(Dette punktet gjelder ikke for øremerkede midler til \"Nasjonalt velferdsteknologiprogram- innføring av velferdsteknologiskeløsninger (Omsorg 2020)\"\nRapporteringen for velferdsteknologiprogram skal gjøres under punkt 7) ",null,null,0]
["d. Samspill med pårørende og frivillige i omsorgssektoren generelt og demensomsorgen spesielt",null,null,0]
["e. Legemiddelhåndtering",null,null,0]
["f. Ernæring",null,null,0]
["g. Fritidsaktivitet med assistanse",null,null,0]
["h. Kulturopplevelser",null,null,0]
["i. Annet",null,null,0]
["SUM (5.1) :",null,null,{"$f":"SUM(D76:D84)","v":0}]
["6. Tilskudd til Innovasjonsprosjekter"]
["6.1. Totalt søkt beløp  ",null,null,0]
["6.2. Utbetalt beløp  ",null,null,0]
["6.3. Ubenyttet beløp ",null,null,0]
["7. Nasjonalt velferdsteknologiprogram - innføring av velferdsteknologiske løsninger"]
["7.1. Totalt søkt beløp",null,null,0]
["7.2. Utbetalt beløp",null,null,0]
["7.3. Ubenyttet beløp",null,null,0]

{"sheet":"Åseral","index":7,"n_rows":93,"n_cols":4,"rows_kept":93,"cut":false,"hidden":false,"merged":[]}
["1. Måloppnåelse (antall ansatte) til Kompetansetiltak (grunn-, videre- og etterutdanning)"]
["1.1. Videregående skole, fag- og yrkesopplæring innen helse (fagbrev)"]
["Utdanningstype","Fullført utdanning ","Under utdanning, men ikke fullført","Samlet antall fullførte og under utdanning "]
["a. Helsefagarbeider",0,0,{"$f":"B4+C4","v":0}]
["b. Annen utdanning på videregående skolenivå ",0,0,{"$f":"B5+C5","v":0}]
["Sum (1.1) :",{"$f":"SUM(B4:B5)","v":0},{"$f":"SUM(C4:C5)","v":0},0]
["1.2. Fagskoleutdanning"]
["a. Psykisk helsearbeid og rusarbeid",0,0,0]
["b. Eldreomsorg/demens",0,0,0]
["c. Habilitering/rehabilitering",0,0,0]
["d. Kreftomsorg/lindrende behandling",0,0,0]
["e. Veiledning",0,0,0]
["f. Annen fagskoleutdanning ",0,0,0]
["Sum (1.2) :",{"$f":"SUM(B8:B13)","v":0},{"$f":"SUM(C8:C13)","v":0},0]
["1.3. Bachelorutdanning helse- og sosialfag"]
["a. Sykepleie",0,0,0]
["b. Vernepleie",0,0,0]
["c. Fysioterapi",0,0,0]
["d. Ergoterapi",0,0,0]
["e. Sosialt arbeid (sosionom)",0,0,0]
["f. Barnevernspedagogikk",0,0,0]
["g. Annen bachelorutdanning",0,0,0]
["Sum (1.3) :",{"$f":"SUM(B16:B22)","v":0},{"$f":"SUM(C16:C22)","v":0},0]
["1.4. Videreutdanning og mastergradutdanning (påbygg bachelorutdanning)"]
["a. Psykisk helsearbeid og rusarbeid",0,0,0]
["b. Tverrfaglig videreutdanning i psykososialt arbeid med barn og unge",0,0,0]
["c. Eldreomsorg/demens",0,0,0]
["d. Kreftomsorg/lindrende pleie",0,0,0]
["e. Habilitering/rehabilitering",0,0,0]
["f. Veiledning",0,0,0]
["g. Lederutdanning",0,0,0]
["h. Annen videreutdanning og/eller masterutdanning ",0,0,0]
["Sum (1.4) :",{"$f":"SUM(B25:B32)","v":0},{"$f":"SUM(C25:C32)","v":0},0]
["1.5. ABC-opplæring"]
["a. Demensomsorgens ABC",0,0,0]
["b. Eldreomsorgens ABC",0,0,0]
["c. Mitt livs ABC",0,0,{"$f":"B37+C37","v":0}]
["d. Velferdsteknologien ABC",0,0,0]
["e. ABC musikkbasert miljøbehandling",0,0,0]
["Sum (1.5) :",{"$f":"SUM(B35:B39)","v":0},{"$f":"SUM(C35:C39)","v":0},0]
["1.6. Annen internopplæring / korte etterutdanninger mv. "]
["a.  Innen psykisk helsearbeid og rusfeltet",0,0,0]
["b. Innen eldreomsorg og demens",null,null,0]
["c. Annet høyt prioritert internopplæring/etterutdanning",0,0,0]
["Sum (1.6) :",{"$f":"SUM(B42:B44)","v":0},{"$f":"SUM(C42:C44)","v":0},0]
[" 1.7. Andre kompetansehevende tiltak med midler direkte fra fylkesmannen  (utdyp i skriftlig del av rapporteringsskjema)"]
["a. Fylkeskoordinator til prosjekt Menn i helse  (ikke for kommuner)",0,0,0]
["b. Desentralisert utdanning fra høgskoler/universiteter (ikke for kommuner)",0,0,0]
["c. Annet  (ikke forkommuner)",0,0,0]
["Sum (1.7) :",{"$f":"SUM(B47:B49)","v":0},{"$f":"SUM(C47:C49)","v":0},{"$f":"B50+C50","v":0}]
["Kompetansetiltak (måloppnåelse) Totalt :",{"$f":"B6+B14+B23+B33+B40+B45+B50","v":0},{"$f":"C6+C14+C23+C33+C40+C45+C50","v":0},{"$f":"B51+C51","v":0}]
["2. Tilskudd til Kompetansetiltak"]
["2.1. Totalt søkt beløp (Kompetansetiltak totalt)",null,null,0]
["2.2. Utbetalt beløp (Kompetansetiltak totalt)",null,null,{"$f":"SUM(D55:D61)","v":0}]
["a. Videregående skole, fag- og yrkesopplæring innen helse (fagbrev)",null,null,0]
["b. Fagskoleutdanning",null,null,0]
["c. Bachelorutdanning helse- og sosialfag",null,null,0]
["d.  Videreutdanning og mastergradutdanning (påbygg bachelorutdanning)",null,null,0]
["e. ABC-opplæring",null,null,0]
["f. Annen internopplæring / korte etterutdanninger /kurs mv. ",null,null,0]
["g. Andre Kompetansehevende tiltak. Fylkesmannen rapporterer her, ikke kommuner",null,null,0]
["2.3. Ubenyttet beløp (Kompetansetiltak totalt)",null,null,0]
["3. Opplæringstilskudd BPA (brukerstyrt personlig assistanse)"]
["3.1. Opplæringstype",null,null,"Antall personer innvilget"]
["a. Arbeidsledere som har fått tilskudd til opplæring",null,null,0]
["b. Saksbehandlere som har fått tilskudd til opplæring",null,null,0]
["c. Assistenter som har fått tilskudd til opplæring",null,null,0]
["d. Uspesifisert ",null,null,0]
["SUM (3.1) :",null,null,{"$f":"SUM(D65:D68)","v":0}]
["4. Tilskudd til BPA"]
["4.1. Totalt søkt beløp ",null,null,0]
["4.2. Utbetalt beløp  ",null,null,0]
["4.3. Ubenyttet beløp ",null,null,0]
["5. Innovasjonsprosjekter"]
["5.1. Prosjekttype",null,null,"Antall prosjekter innvilget"]
["a. Forebygging,  tidlig innsats og egenmestring",null,null,0]
["b. Habilitering og rehabilitering, herunder hverdagsrehabilitering",null,null,0]
["c. Velferdsteknologiske løsninger\n(Dette punktet gjelder ikke for øremerkede midler til \"Nasjonalt velferdsteknologiprogram- innføring av velferdsteknologiskeløsninger (Omsorg 2020)\"\nRapporteringen for velferdsteknologiprogram skal gjøres under punkt 7) ",null,null,0]
["d. Samspill med pårørende og frivillige i omsorgssektoren generelt og demensomsorgen spesielt",null,null,0]
["e. Legemiddelhåndtering",null,null,0]
["f. Ernæring",null,null,0]
["g. Fritidsaktivitet med assistanse",null,null,0]
["h. Kulturopplevelser",null,null,0]
["i. Annet",null,null,0]
["SUM (5.1) :",null,null,{"$f":"SUM(D76:D84)","v":0}]
["6. Tilskudd til Innovasjonsprosjekter"]
["6.1. Totalt søkt beløp  ",null,null,0]
["6.2. Utbetalt beløp  ",null,null,0]
["6.3. Ubenyttet beløp ",null,null,0]
["7. Nasjonalt velferdsteknologiprogram - innføring av velferdsteknologiske løsninger"]
["7.1. Totalt søkt beløp",null,null,0]
["7.2. Utbetalt beløp",null,null,0]
["7.3. Ubenyttet beløp",null,null,0]

{"sheet":"Marnardal","index":8,"n_rows":93,"n_cols":4,"rows_kept":93,"cut":false,"hidden":false,"merged":[]}
["1. Måloppnåelse (antall ansatte) til Kompetansetiltak (grunn-, videre- og etterutdanning)"]
["1.1. Videregående skole, fag- og yrkesopplæring innen helse (fagbrev)"]
["Utdanningstype","Fullført utdanning ","Under utdanning, men ikke fullført","Samlet antall fullførte og under utdanning "]
["a. Helsefagarbeider",0,0,{"$f":"B4+C4","v":0}]
["b. Annen utdanning på videregående skolenivå ",0,0,{"$f":"B5+C5","v":0}]
["Sum (1.1) :",{"$f":"SUM(B4:B5)","v":0},{"$f":"SUM(C4:C5)","v":0},0]
["1.2. Fagskoleutdanning"]
["a. Psykisk helsearbeid og rusarbeid",0,0,0]
["b. Eldreomsorg/demens",0,0,0]
["c. Habilitering/rehabilitering",0,0,0]
["d. Kreftomsorg/lindrende behandling",0,0,0]
["e. Veiledning",0,0,0]
["f. Annen fagskoleutdanning ",0,0,0]
["Sum (1.2) :",{"$f":"SUM(B8:B13)","v":0},{"$f":"SUM(C8:C13)","v":0},0]
["1.3. Bachelorutdanning helse- og sosialfag"]
["a. Sykepleie",0,0,0]
["b. Vernepleie",0,0,0]
["c. Fysioterapi",0,0,0]
["d. Ergoterapi",0,0,0]
["e. Sosialt arbeid (sosionom)",0,0,0]
["f. Barnevernspedagogikk",0,0,0]
["g. Annen bachelorutdanning",0,0,0]
["Sum (1.3) :",{"$f":"SUM(B16:B22)","v":0},{"$f":"SUM(C16:C22)","v":0},0]
["1.4. Videreutdanning og mastergradutdanning (påbygg bachelorutdanning)"]
["a. Psykisk helsearbeid og rusarbeid",0,0,0]
["b. Tverrfaglig videreutdanning i psykososialt arbeid med barn og unge",0,0,0]
["c. Eldreomsorg/demens",0,0,0]
["d. Kreftomsorg/lindrende pleie",0,0,0]
["e. Habilitering/rehabilitering",0,0,0]
["f. Veiledning",0,0,0]
["g. Lederutdanning",0,0,0]
["h. Annen videreutdanning og/eller masterutdanning ",0,0,0]
["Sum (1.4) :",{"$f":"SUM(B25:B32)","v":0},{"$f":"SUM(C25:C32)","v":0},0]
["1.5. ABC-opplæring"]
["a. Demensomsorgens ABC",0,0,0]
["b. Eldreomsorgens ABC",0,0,0]
["c. Mitt livs ABC",0,0,{"$f":"B37+C37","v":0}]
["d. Velferdsteknologien ABC",0,0,0]
["e. ABC musikkbasert miljøbehandling",0,0,0]
["Sum (1.5) :",{"$f":"SUM(B35:B39)","v":0},{"$f":"SUM(C35:C39)","v":0},0]
["1.6. Annen internopplæring / korte etterutdanninger mv. "]
["a.  Innen psykisk helsearbeid og rusfeltet",0,0,0]
["b. Innen eldreomsorg og demens",null,null,0]
["c. Annet høyt prioritert internopplæring/etterutdanning",0,0,0]
["Sum (1.6) :",{"$f":"SUM(B42:B44)","v":0},{"$f":"SUM(C42:C44)","v":0},0]
[" 1.7. Andre kompetansehevende tiltak med midler direkte fra fylkesmannen  (utdyp i skriftlig del av rapporteringsskjema)"]
["a. Fylkeskoordinator til prosjekt Menn i helse  (ikke for kommuner)",0,0,0]
["b. Desentralisert utdanning fra høgskoler/universiteter (ikke for kommuner)",0,0,0]
["c. Annet  (ikke forkommuner)",0,0,0]
["Sum (1.7) :",{"$f":"SUM(B47:B49)","v":0},{"$f":"SUM(C47:C49)","v":0},{"$f":"B50+C50","v":0}]
["Kompetansetiltak (måloppnåelse) Totalt :",{"$f":"B6+B14+B23+B33+B40+B45+B50","v":0},{"$f":"C6+C14+C23+C33+C40+C45+C50","v":0},{"$f":"B51+C51","v":0}]
["2. Tilskudd til Kompetansetiltak"]
["2.1. Totalt søkt beløp (Kompetansetiltak totalt)",null,null,0]
["2.2. Utbetalt beløp (Kompetansetiltak totalt)",null,null,{"$f":"SUM(D55:D61)","v":0}]
["a. Videregående skole, fag- og yrkesopplæring innen helse (fagbrev)",null,null,0]
["b. Fagskoleutdanning",null,null,0]
["c. Bachelorutdanning helse- og sosialfag",null,null,0]
["d.  Videreutdanning og mastergradutdanning (påbygg bachelorutdanning)",null,null,0]
["e. ABC-opplæring",null,null,0]
["f. Annen internopplæring / korte etterutdanninger /kurs mv. ",null,null,0]
["g. Andre Kompetansehevende tiltak. Fylkesmannen rapporterer her, ikke kommuner",null,null,0]
["2.3. Ubenyttet beløp (Kompetansetiltak totalt)",null,null,0]
["3. Opplæringstilskudd BPA (brukerstyrt personlig assistanse)"]
["3.1. Opplæringstype",null,null,"Antall personer innvilget"]
["a. Arbeidsledere som har fått tilskudd til opplæring",null,null,0]
["b. Saksbehandlere som har fått tilskudd til opplæring",null,null,0]
["c. Assistenter som har fått tilskudd til opplæring",null,null,0]
["d. Uspesifisert ",null,null,0]
["SUM (3.1) :",null,null,{"$f":"SUM(D65:D68)","v":0}]
["4. Tilskudd til BPA"]
["4.1. Totalt søkt beløp ",null,null,0]
["4.2. Utbetalt beløp  ",null,null,0]
["4.3. Ubenyttet beløp ",null,null,0]
["5. Innovasjonsprosjekter"]
["5.1. Prosjekttype",null,null,"Antall prosjekter innvilget"]
["a. Forebygging,  tidlig innsats og egenmestring",null,null,0]
["b. Habilitering og rehabilitering, herunder hverdagsrehabilitering",null,null,0]
["c. Velferdsteknologiske løsninger\n(Dette punktet gjelder ikke for øremerkede midler til \"Nasjonalt velferdsteknologiprogram- innføring av velferdsteknologiskeløsninger (Omsorg 2020)\"\nRapporteringen for velferdsteknologiprogram skal gjøres under punkt 7) ",null,null,0]
["d. Samspill med pårørende og frivillige i omsorgssektoren generelt og demensomsorgen spesielt",null,null,0]
["e. Legemiddelhåndtering",null,null,0]
["f. Ernæring",null,null,0]
["g. Fritidsaktivitet med assistanse",null,null,0]
["h. Kulturopplevelser",null,null,0]
["i. Annet",null,null,0]
["SUM (5.1) :",null,null,{"$f":"SUM(D76:D84)","v":0}]
["6. Tilskudd til Innovasjonsprosjekter"]
["6.1. Totalt søkt beløp  ",null,null,0]
["6.2. Utbetalt beløp  ",null,null,0]
["6.3. Ubenyttet beløp ",null,null,0]
["7. Nasjonalt velferdsteknologiprogram - innføring av velferdsteknologiske løsninger"]
["7.1. Totalt søkt beløp",null,null,0]
["7.2. Utbetalt beløp",null,null,0]
["7.3. Ubenyttet beløp",null,null,0]

{"sheet":"Søgne","index":9,"n_rows":93,"n_cols":4,"rows_kept":93,"cut":false,"hidden":false,"merged":[]}
["1. Måloppnåelse (antall ansatte) til Kompetansetiltak (grunn-, videre- og etterutdanning)"]
["1.1. Videregående skole, fag- og yrkesopplæring innen helse (fagbrev)"]
["Utdanningstype","Fullført utdanning ","Under utdanning, men ikke fullført","Samlet antall fullførte og under utdanning "]
["a. Helsefagarbeider",0,0,{"$f":"B4+C4","v":0}]
["b. Annen utdanning på videregående skolenivå ",0,0,{"$f":"B5+C5","v":0}]
["Sum (1.1) :",{"$f":"SUM(B4:B5)","v":0},{"$f":"SUM(C4:C5)","v":0},0]
["1.2. Fagskoleutdanning"]
["a. Psykisk helsearbeid og rusarbeid",0,0,0]
["b. Eldreomsorg/demens",0,0,0]
["c. Habilitering/rehabilitering",0,0,0]
["d. Kreftomsorg/lindrende behandling",0,0,0]
["e. Veiledning",0,0,0]
["f. Annen fagskoleutdanning ",0,0,0]
["Sum (1.2) :",{"$f":"SUM(B8:B13)","v":0},{"$f":"SUM(C8:C13)","v":0},0]
["1.3. Bachelorutdanning helse- og sosialfag"]
["a. Sykepleie",0,0,0]
["b. Vernepleie",0,0,0]
["c. Fysioterapi",0,0,0]
["d. Ergoterapi",0,0,0]
["e. Sosialt arbeid (sosionom)",0,0,0]
["f. Barnevernspedagogikk",0,0,0]
["g. Annen bachelorutdanning",0,0,0]
["Sum (1.3) :",{"$f":"SUM(B16:B22)","v":0},{"$f":"SUM(C16:C22)","v":0},0]
["1.4. Videreutdanning og mastergradutdanning (påbygg bachelorutdanning)"]
["a. Psykisk helsearbeid og rusarbeid",0,0,0]
["b. Tverrfaglig videreutdanning i psykososialt arbeid med barn og unge",0,0,0]
["c. Eldreomsorg/demens",0,0,0]
["d. Kreftomsorg/lindrende pleie",0,0,0]
["e. Habilitering/rehabilitering",0,0,0]
["f. Veiledning",0,0,0]
["g. Lederutdanning",0,0,0]
["h. Annen videreutdanning og/eller masterutdanning ",0,0,0]
["Sum (1.4) :",{"$f":"SUM(B25:B32)","v":0},{"$f":"SUM(C25:C32)","v":0},0]
["1.5. ABC-opplæring"]
["a. Demensomsorgens ABC",0,0,0]
["b. Eldreomsorgens ABC",0,0,0]
["c. Mitt livs ABC",0,0,{"$f":"B37+C37","v":0}]
["d. Velferdsteknologien ABC",0,0,0]
["e. ABC musikkbasert miljøbehandling",0,0,0]
["Sum (1.5) :",{"$f":"SUM(B35:B39)","v":0},{"$f":"SUM(C35:C39)","v":0},0]
["1.6. Annen internopplæring / korte etterutdanninger mv. "]
["a.  Innen psykisk helsearbeid og rusfeltet",0,0,0]
["b. Innen eldreomsorg og demens",null,null,0]
["c. Annet høyt prioritert internopplæring/etterutdanning",0,0,0]
["Sum (1.6) :",{"$f":"SUM(B42:B44)","v":0},{"$f":"SUM(C42:C44)","v":0},0]
[" 1.7. Andre kompetansehevende tiltak med midler direkte fra fylkesmannen  (utdyp i skriftlig del av rapporteringsskjema)"]
["a. Fylkeskoordinator til prosjekt Menn i helse  (ikke for kommuner)",0,0,0]
["b. Desentralisert utdanning fra høgskoler/universiteter (ikke for kommuner)",0,0,0]
["c. Annet  (ikke forkommuner)",0,0,0]
["Sum (1.7) :",{"$f":"SUM(B47:B49)","v":0},{"$f":"SUM(C47:C49)","v":0},{"$f":"B50+C50","v":0}]
["Kompetansetiltak (måloppnåelse) Totalt :",{"$f":"B6+B14+B23+B33+B40+B45+B50","v":0},{"$f":"C6+C14+C23+C33+C40+C45+C50","v":0},{"$f":"B51+C51","v":0}]
["2. Tilskudd til Kompetansetiltak"]
["2.1. Totalt søkt beløp (Kompetansetiltak totalt)",null,null,0]
["2.2. Utbetalt beløp (Kompetansetiltak totalt)",null,null,{"$f":"SUM(D55:D61)","v":0}]
["a. Videregående skole, fag- og yrkesopplæring innen helse (fagbrev)",null,null,0]
["b. Fagskoleutdanning",null,null,0]
["c. Bachelorutdanning helse- og sosialfag",null,null,0]
["d.  Videreutdanning og mastergradutdanning (påbygg bachelorutdanning)",null,null,0]
["e. ABC-opplæring",null,null,0]
["f. Annen internopplæring / korte etterutdanninger /kurs mv. ",null,null,0]
["g. Andre Kompetansehevende tiltak. Fylkesmannen rapporterer her, ikke kommuner",null,null,0]
["2.3. Ubenyttet beløp (Kompetansetiltak totalt)",null,null,0]
["3. Opplæringstilskudd BPA (brukerstyrt personlig assistanse)"]
["3.1. Opplæringstype",null,null,"Antall personer innvilget"]
["a. Arbeidsledere som har fått tilskudd til opplæring",null,null,0]
["b. Saksbehandlere som har fått tilskudd til opplæring",null,null,0]
["c. Assistenter som har fått tilskudd til opplæring",null,null,0]
["d. Uspesifisert ",null,null,0]
["SUM (3.1) :",null,null,{"$f":"SUM(D65:D68)","v":0}]
["4. Tilskudd til BPA"]
["4.1. Totalt søkt beløp ",null,null,0]
["4.2. Utbetalt beløp  ",null,null,0]
["4.3. Ubenyttet beløp ",null,null,0]
["5. Innovasjonsprosjekter"]
["5.1. Prosjekttype",null,null,"Antall prosjekter innvilget"]
["a. Forebygging,  tidlig innsats og egenmestring",null,null,0]
["b. Habilitering og rehabilitering, herunder hverdagsrehabilitering",null,null,0]
["c. Velferdsteknologiske løsninger\n(Dette punktet gjelder ikke for øremerkede midler til \"Nasjonalt velferdsteknologiprogram- innføring av velferdsteknologiskeløsninger (Omsorg 2020)\"\nRapporteringen for velferdsteknologiprogram skal gjøres under punkt 7) ",null,null,0]
["d. Samspill med pårørende og frivillige i omsorgssektoren generelt og demensomsorgen spesielt",null,null,0]
["e. Legemiddelhåndtering",null,null,0]
["f. Ernæring",null,null,0]
["g. Fritidsaktivitet med assistanse",null,null,0]
["h. Kulturopplevelser",null,null,0]
["i. Annet",null,null,0]
["SUM (5.1) :",null,null,{"$f":"SUM(D76:D84)","v":0}]
["6. Tilskudd til Innovasjonsprosjekter"]
["6.1. Totalt søkt beløp  ",null,null,0]
["6.2. Utbetalt beløp  ",null,null,0]
["6.3. Ubenyttet beløp ",null,null,0]
["7. Nasjonalt velferdsteknologiprogram - innføring av velferdsteknologiske løsninger"]
["7.1. Totalt søkt beløp",null,null,0]
["7.2. Utbetalt beløp",null,null,0]
["7.3. Ubenyttet beløp",null,null,0]

{"sheet":"Songdalen","index":10,"n_rows":93,"n_cols":4,"rows_kept":93,"cut":false,"hidden":false,"merged":[]}
["1. Måloppnåelse (antall ansatte) til Kompetansetiltak (grunn-, videre- og etterutdanning)"]
["1.1. Videregående skole, fag- og yrkesopplæring innen helse (fagbrev)"]
["Utdanningstype","Fullført utdanning ","Under utdanning, men ikke fullført","Samlet antall fullførte og under utdanning "]
["a. Helsefagarbeider",0,0,{"$f":"B4+C4","v":0}]
["b. Annen utdanning på videregående skolenivå ",0,0,{"$f":"B5+C5","v":0}]
["Sum (1.1) :",{"$f":"SUM(B4:B5)","v":0},{"$f":"SUM(C4:C5)","v":0},0]
["1.2. Fagskoleutdanning"]
["a. Psykisk helsearbeid og rusarbeid",0,0,0]
["b. Eldreomsorg/demens",0,0,0]
["c. Habilitering/rehabilitering",0,0,0]
["d. Kreftomsorg/lindrende behandling",0,0,0]
["e. Veiledning",0,0,0]
["f. Annen fagskoleutdanning ",0,0,0]
["Sum (1.2) :",{"$f":"SUM(B8:B13)","v":0},{"$f":"SUM(C8:C13)","v":0},0]
["1.3. Bachelorutdanning helse- og sosialfag"]
["a. Sykepleie",0,0,0]
["b. Vernepleie",0,0,0]
["c. Fysioterapi",0,0,0]
["d. Ergoterapi",0,0,0]
["e. Sosialt arbeid (sosionom)",0,0,0]
["f. Barnevernspedagogikk",0,0,0]
["g. Annen bachelorutdanning",0,0,0]
["Sum (1.3) :",{"$f":"SUM(B16:B22)","v":0},{"$f":"SUM(C16:C22)","v":0},0]
["1.4. Videreutdanning og mastergradutdanning (påbygg bachelorutdanning)"]
["a. Psykisk helsearbeid og rusarbeid",0,0,0]
["b. Tverrfaglig videreutdanning i psykososialt arbeid med barn og unge",0,0,0]
["c. Eldreomsorg/demens",0,0,0]
["d. Kreftomsorg/lindrende pleie",0,0,0]
["e. Habilitering/rehabilitering",0,0,0]
["f. Veiledning",0,0,0]
["g. Lederutdanning",0,0,0]
["h. Annen videreutdanning og/eller masterutdanning ",0,0,0]
["Sum (1.4) :",{"$f":"SUM(B25:B32)","v":0},{"$f":"SUM(C25:C32)","v":0},0]
["1.5. ABC-opplæring"]
["a. Demensomsorgens ABC",0,0,0]
["b. Eldreomsorgens ABC",0,0,0]
["c. Mitt livs ABC",0,0,{"$f":"B37+C37","v":0}]
["d. Velferdsteknologien ABC",0,0,0]
["e. ABC musikkbasert miljøbehandling",0,0,0]
["Sum (1.5) :",{"$f":"SUM(B35:B39)","v":0},{"$f":"SUM(C35:C39)","v":0},0]
["1.6. Annen internopplæring / korte etterutdanninger mv. "]
["a.  Innen psykisk helsearbeid og rusfeltet",0,0,0]
["b. Innen eldreomsorg og demens",null,null,0]
["c. Annet høyt prioritert internopplæring/etterutdanning",0,0,0]
["Sum (1.6) :",{"$f":"SUM(B42:B44)","v":0},{"$f":"SUM(C42:C44)","v":0},0]
[" 1.7. Andre kompetansehevende tiltak med midler direkte fra fylkesmannen  (utdyp i skriftlig del av rapporteringsskjema)"]
["a. Fylkeskoordinator til prosjekt Menn i helse  (ikke for kommuner)",0,0,0]
["b. Desentralisert utdanning fra høgskoler/universiteter (ikke for kommuner)",0,0,0]
["c. Annet  (ikke forkommuner)",0,0,0]
["Sum (1.7) :",{"$f":"SUM(B47:B49)","v":0},{"$f":"SUM(C47:C49)","v":0},{"$f":"B50+C50","v":0}]
["Kompetansetiltak (måloppnåelse) Totalt :",{"$f":"B6+B14+B23+B33+B40+B45+B50","v":0},{"$f":"C6+C14+C23+C33+C40+C45+C50","v":0},{"$f":"B51+C51","v":0}]
["2. Tilskudd til Kompetansetiltak"]
["2.1. Totalt søkt beløp (Kompetansetiltak totalt)",null,null,0]
["2.2. Utbetalt beløp (Kompetansetiltak totalt)",null,null,{"$f":"SUM(D55:D61)","v":0}]
["a. Videregående skole, fag- og yrkesopplæring innen helse (fagbrev)",null,null,0]
["b. Fagskoleutdanning",null,null,0]
["c. Bachelorutdanning helse- og sosialfag",null,null,0]
["d.  Videreutdanning og mastergradutdanning (påbygg bachelorutdanning)",null,null,0]
["e. ABC-opplæring",null,null,0]
["f. Annen internopplæring / korte etterutdanninger /kurs mv. ",null,null,0]
["g. Andre Kompetansehevende tiltak. Fylkesmannen rapporterer her, ikke kommuner",null,null,0]
["2.3. Ubenyttet beløp (Kompetansetiltak totalt)",null,null,0]
["3. Opplæringstilskudd BPA (brukerstyrt personlig assistanse)"]
["3.1. Opplæringstype",null,null,"Antall personer innvilget"]
["a. Arbeidsledere som har fått tilskudd til opplæring",null,null,0]
["b. Saksbehandlere som har fått tilskudd til opplæring",null,null,0]
["c. Assistenter som har fått tilskudd til opplæring",null,null,0]
["d. Uspesifisert ",null,null,0]
["SUM (3.1) :",null,null,{"$f":"SUM(D65:D68)","v":0}]
["4. Tilskudd til BPA"]
["4.1. Totalt søkt beløp ",null,null,0]
["4.2. Utbetalt beløp  ",null,null,0]
["4.3. Ubenyttet beløp ",null,null,0]
["5. Innovasjonsprosjekter"]
["5.1. Prosjekttype",null,null,"Antall prosjekter innvilget"]
["a. Forebygging,  tidlig innsats og egenmestring",null,null,0]
["b. Habilitering og rehabilitering, herunder hverdagsrehabilitering",null,null,0]
["c. Velferdsteknologiske løsninger\n(Dette punktet gjelder ikke for øremerkede midler til \"Nasjonalt velferdsteknologiprogram- innføring av velferdsteknologiskeløsninger (Omsorg 2020)\"\nRapporteringen for velferdsteknologiprogram skal gjøres under punkt 7) ",null,null,0]
["d. Samspill med pårørende og frivillige i omsorgssektoren generelt og demensomsorgen spesielt",null,null,0]
["e. Legemiddelhåndtering",null,null,0]
["f. Ernæring",null,null,0]
["g. Fritidsaktivitet med assistanse",null,null,0]
["h. Kulturopplevelser",null,null,0]
["i. Annet",null,null,0]
["SUM (5.1) :",null,null,{"$f":"SUM(D76:D84)","v":0}]
["6. Tilskudd til Innovasjonsprosjekter"]
["6.1. Totalt søkt beløp  ",null,null,0]
["6.2. Utbetalt beløp  ",null,null,0]
["6.3. Ubenyttet beløp ",null,null,0]
["7. Nasjonalt velferdsteknologiprogram - innføring av velferdsteknologiske løsninger"]
["7.1. Totalt søkt beløp",null,null,0]
["7.2. Utbetalt beløp",null,null,0]
["7.3. Ubenyttet beløp",null,null,0]

{"sheet":"Vennesla","index":11,"n_rows":93,"n_cols":4,"rows_kept":93,"cut":false,"hidden":false,"merged":[]}
["1. Måloppnåelse (antall ansatte) til Kompetansetiltak (grunn-, videre- og etterutdanning)"]
["1.1. Videregående skole, fag- og yrkesopplæring innen helse (fagbrev)"]
["Utdanningstype","Fullført utdanning ","Under utdanning, men ikke fullført","Samlet antall fullførte og under utdanning "]
["a. Helsefagarbeider",0,0,{"$f":"B4+C4","v":0}]
["b. Annen utdanning på videregående skolenivå ",0,0,{"$f":"B5+C5","v":0}]
["Sum (1.1) :",{"$f":"SUM(B4:B5)","v":0},{"$f":"SUM(C4:C5)","v":0},0]
["1.2. Fagskoleutdanning"]
["a. Psykisk helsearbeid og rusarbeid",0,0,0]
["b. Eldreomsorg/demens",0,0,0]
["c. Habilitering/rehabilitering",0,0,0]
["d. Kreftomsorg/lindrende behandling",0,0,0]
["e. Veiledning",0,0,0]
["f. Annen fagskoleutdanning ",0,0,0]
["Sum (1.2) :",{"$f":"SUM(B8:B13)","v":0},{"$f":"SUM(C8:C13)","v":0},0]
["1.3. Bachelorutdanning helse- og sosialfag"]
["a. Sykepleie",0,0,0]
["b. Vernepleie",0,0,0]
["c. Fysioterapi",0,0,0]
["d. Ergoterapi",0,0,0]
["e. Sosialt arbeid (sosionom)",0,0,0]
["f. Barnevernspedagogikk",0,0,0]
["g. Annen bachelorutdanning",0,0,0]
["Sum (1.3) :",{"$f":"SUM(B16:B22)","v":0},{"$f":"SUM(C16:C22)","v":0},0]
["1.4. Videreutdanning og mastergradutdanning (påbygg bachelorutdanning)"]
["a. Psykisk helsearbeid og rusarbeid",0,0,0]
["b. Tverrfaglig videreutdanning i psykososialt arbeid med barn og unge",0,0,0]
["c. Eldreomsorg/demens",0,0,0]
["d. Kreftomsorg/lindrende pleie",0,0,0]
["e. Habilitering/rehabilitering",0,0,0]
["f. Veiledning",0,0,0]
["g. Lederutdanning",0,0,0]
["h. Annen videreutdanning og/eller masterutdanning ",0,0,0]
["Sum (1.4) :",{"$f":"SUM(B25:B32)","v":0},{"$f":"SUM(C25:C32)","v":0},0]
["1.5. ABC-opplæring"]
["a. Demensomsorgens ABC",0,0,0]
["b. Eldreomsorgens ABC",0,0,0]
["c. Mitt livs ABC",0,0,{"$f":"B37+C37","v":0}]
["d. Velferdsteknologien ABC",0,0,0]
["e. ABC musikkbasert miljøbehandling",0,0,0]
["Sum (1.5) :",{"$f":"SUM(B35:B39)","v":0},{"$f":"SUM(C35:C39)","v":0},0]
["1.6. Annen internopplæring / korte etterutdanninger mv. "]
["a.  Innen psykisk helsearbeid og rusfeltet",0,0,0]
["b. Innen eldreomsorg og demens",null,null,0]
["c. Annet høyt prioritert internopplæring/etterutdanning",0,0,0]
["Sum (1.6) :",{"$f":"SUM(B42:B44)","v":0},{"$f":"SUM(C42:C44)","v":0},0]
[" 1.7. Andre kompetansehevende tiltak med midler direkte fra fylkesmannen  (utdyp i skriftlig del av rapporteringsskjema)"]
["a. Fylkeskoordinator til prosjekt Menn i helse  (ikke for kommuner)",0,0,0]
["b. Desentralisert utdanning fra høgskoler/universiteter (ikke for kommuner)",0,0,0]
["c. Annet  (ikke forkommuner)",0,0,0]
["Sum (1.7) :",{"$f":"SUM(B47:B49)","v":0},{"$f":"SUM(C47:C49)","v":0},{"$f":"B50+C50","v":0}]
["Kompetansetiltak (måloppnåelse) Totalt :",{"$f":"B6+B14+B23+B33+B40+B45+B50","v":0},{"$f":"C6+C14+C23+C33+C40+C45+C50","v":0},{"$f":"B51+C51","v":0}]
["2. Tilskudd til Kompetansetiltak"]
["2.1. Totalt søkt beløp (Kompetansetiltak totalt)",null,null,0]
["2.2. Utbetalt beløp (Kompetansetiltak totalt)",null,null,{"$f":"SUM(D55:D61)","v":0}]
["a. Videregående skole, fag- og yrkesopplæring innen helse (fagbrev)",null,null,0]
["b. Fagskoleutdanning",null,null,0]
["c. Bachelorutdanning helse- og sosialfag",null,null,0]
["d.  Videreutdanning og mastergradutdanning (påbygg bachelorutdanning)",null,null,0]
["e. ABC-opplæring",null,null,0]
["f. Annen internopplæring / korte etterutdanninger /kurs mv. ",null,null,0]
["g. Andre Kompetansehevende tiltak. Fylkesmannen rapporterer her, ikke kommuner",null,null,0]
["2.3. Ubenyttet beløp (Kompetansetiltak totalt)",null,null,0]
["3. Opplæringstilskudd BPA (brukerstyrt personlig assistanse)"]
["3.1. Opplæringstype",null,null,"Antall personer innvilget"]
["a. Arbeidsledere som har fått tilskudd til opplæring",null,null,0]
["b. Saksbehandlere som har fått tilskudd til opplæring",null,null,0]
["c. Assistenter som har fått tilskudd til opplæring",null,null,0]
["d. Uspesifisert ",null,null,0]
["SUM (3.1) :",null,null,{"$f":"SUM(D65:D68)","v":0}]
["4. Tilskudd til BPA"]
["4.1. Totalt søkt beløp ",null,null,0]
["4.2. Utbetalt beløp  ",null,null,0]
["4.3. Ubenyttet beløp ",null,null,0]
["5. Innovasjonsprosjekter"]
["5.1. Prosjekttype",null,null,"Antall prosjekter innvilget"]
["a. Forebygging,  tidlig innsats og egenmestring",null,null,0]
["b. Habilitering og rehabilitering, herunder hverdagsrehabilitering",null,null,0]
["c. Velferdsteknologiske løsninger\n(Dette punktet gjelder ikke for øremerkede midler til \"Nasjonalt velferdsteknologiprogram- innføring av velferdsteknologiskeløsninger (Omsorg 2020)\"\nRapporteringen for velferdsteknologiprogram skal gjøres under punkt 7) ",null,null,0]
["d. Samspill med pårørende og frivillige i omsorgssektoren generelt og demensomsorgen spesielt",null,null,0]
["e. Legemiddelhåndtering",null,null,0]
["f. Ernæring",null,null,0]
["g. Fritidsaktivitet med assistanse",null,null,0]
["h. Kulturopplevelser",null,null,0]
["i. Annet",null,null,0]
["SUM (5.1) :",null,null,{"$f":"SUM(D76:D84)","v":0}]
["6. Tilskudd til Innovasjonsprosjekter"]
["6.1. Totalt søkt beløp  ",null,null,0]
["6.2. Utbetalt beløp  ",null,null,0]
["6.3. Ubenyttet beløp ",null,null,0]
["7. Nasjonalt velferdsteknologiprogram - innføring av velferdsteknologiske løsninger"]
["7.1. Totalt søkt beløp",null,null,0]
["7.2. Utbetalt beløp",null,null,0]
["7.3. Ubenyttet beløp",null,null,0]

{"sheet":"Flekkefjord","index":12,"n_rows":93,"n_cols":4,"rows_kept":93,"cut":false,"hidden":false,"merged":[]}
["1. Måloppnåelse (antall ansatte) til Kompetansetiltak (grunn-, videre- og etterutdanning)"]
["1.1. Videregående skole, fag- og yrkesopplæring innen helse (fagbrev)"]
["Utdanningstype","Fullført utdanning ","Under utdanning, men ikke fullført","Samlet antall fullførte og under utdanning "]
["a. Helsefagarbeider",0,0,{"$f":"B4+C4","v":0}]
["b. Annen utdanning på videregående skolenivå ",0,0,{"$f":"B5+C5","v":0}]
["Sum (1.1) :",{"$f":"SUM(B4:B5)","v":0},{"$f":"SUM(C4:C5)","v":0},0]
["1.2. Fagskoleutdanning"]
["a. Psykisk helsearbeid og rusarbeid",0,0,0]
["b. Eldreomsorg/demens",0,0,0]
["c. Habilitering/rehabilitering",0,0,0]
["d. Kreftomsorg/lindrende behandling",0,0,0]
["e. Veiledning",0,0,0]
["f. Annen fagskoleutdanning ",0,0,0]
["Sum (1.2) :",{"$f":"SUM(B8:B13)","v":0},{"$f":"SUM(C8:C13)","v":0},0]
["1.3. Bachelorutdanning helse- og sosialfag"]
["a. Sykepleie",0,0,0]
["b. Vernepleie",0,0,0]
["c. Fysioterapi",0,0,0]
["d. Ergoterapi",0,0,0]
["e. Sosialt arbeid (sosionom)",0,0,0]
["f. Barnevernspedagogikk",0,0,0]
["g. Annen bachelorutdanning",0,0,0]
["Sum (1.3) :",{"$f":"SUM(B16:B22)","v":0},{"$f":"SUM(C16:C22)","v":0},0]
["1.4. Videreutdanning og mastergradutdanning (påbygg bachelorutdanning)"]
["a. Psykisk helsearbeid og rusarbeid",0,0,0]
["b. Tverrfaglig videreutdanning i psykososialt arbeid med barn og unge",0,0,0]
["c. Eldreomsorg/demens",0,0,0]
["d. Kreftomsorg/lindrende pleie",0,0,0]
["e. Habilitering/rehabilitering",0,0,0]
["f. Veiledning",0,0,0]
["g. Lederutdanning",0,0,0]
["h. Annen videreutdanning og/eller masterutdanning ",0,0,0]
["Sum (1.4) :",{"$f":"SUM(B25:B32)","v":0},{"$f":"SUM(C25:C32)","v":0},0]
["1.5. ABC-opplæring"]
["a. Demensomsorgens ABC",0,0,0]
["b. Eldreomsorgens ABC",0,0,0]
["c. Mitt livs ABC",0,0,{"$f":"B37+C37","v":0}]
["d. Velferdsteknologien ABC",0,0,0]
["e. ABC musikkbasert miljøbehandling",0,0,0]
["Sum (1.5) :",{"$f":"SUM(B35:B39)","v":0},{"$f":"SUM(C35:C39)","v":0},0]
["1.6. Annen internopplæring / korte etterutdanninger mv. "]
["a.  Innen psykisk helsearbeid og rusfeltet",0,0,0]
["b. Innen eldreomsorg og demens",null,null,0]
["c. Annet høyt prioritert internopplæring/etterutdanning",0,0,0]
["Sum (1.6) :",{"$f":"SUM(B42:B44)","v":0},{"$f":"SUM(C42:C44)","v":0},0]
[" 1.7. Andre kompetansehevende tiltak med midler direkte fra fylkesmannen  (utdyp i skriftlig del av rapporteringsskjema)"]
["a. Fylkeskoordinator til prosjekt Menn i helse  (ikke for kommuner)",0,0,0]
["b. Desentralisert utdanning fra høgskoler/universiteter (ikke for kommuner)",0,0,0]
["c. Annet  (ikke forkommuner)",0,0,0]
["Sum (1.7) :",{"$f":"SUM(B47:B49)","v":0},{"$f":"SUM(C47:C49)","v":0},{"$f":"B50+C50","v":0}]
["Kompetansetiltak (måloppnåelse) Totalt :",{"$f":"B6+B14+B23+B33+B40+B45+B50","v":0},{"$f":"C6+C14+C23+C33+C40+C45+C50","v":0},{"$f":"B51+C51","v":0}]
["2. Tilskudd til Kompetansetiltak"]
["2.1. Totalt søkt beløp (Kompetansetiltak totalt)",null,null,0]
["2.2. Utbetalt beløp (Kompetansetiltak totalt)",null,null,{"$f":"SUM(D55:D61)","v":0}]
["a. Videregående skole, fag- og yrkesopplæring innen helse (fagbrev)",null,null,0]
["b. Fagskoleutdanning",null,null,0]
["c. Bachelorutdanning helse- og sosialfag",null,null,0]
["d.  Videreutdanning og mastergradutdanning (påbygg bachelorutdanning)",null,null,0]
["e. ABC-opplæring",null,null,0]
["f. Annen internopplæring / korte etterutdanninger /kurs mv. ",null,null,0]
["g. Andre Kompetansehevende tiltak. Fylkesmannen rapporterer her, ikke kommuner",null,null,0]
["2.3. Ubenyttet beløp (Kompetansetiltak totalt)",null,null,0]
["3. Opplæringstilskudd BPA (brukerstyrt personlig assistanse)"]
["3.1. Opplæringstype",null,null,"Antall personer innvilget"]
["a. Arbeidsledere som har fått tilskudd til opplæring",null,null,0]
["b. Saksbehandlere som har fått tilskudd til opplæring",null,null,0]
["c. Assistenter som har fått tilskudd til opplæring",null,null,0]
["d. Uspesifisert ",null,null,0]
["SUM (3.1) :",null,null,{"$f":"SUM(D65:D68)","v":0}]
["4. Tilskudd til BPA"]
["4.1. Totalt søkt beløp ",null,null,0]
["4.2. Utbetalt beløp  ",null,null,0]
["4.3. Ubenyttet beløp ",null,null,0]
["5. Innovasjonsprosjekter"]
["5.1. Prosjekttype",null,null,"Antall prosjekter innvilget"]
["a. Forebygging,  tidlig innsats og egenmestring",null,null,0]
["b. Habilitering og rehabilitering, herunder hverdagsrehabilitering",null,null,0]
["c. Velferdsteknologiske løsninger\n(Dette punktet gjelder ikke for øremerkede midler til \"Nasjonalt velferdsteknologiprogram- innføring av velferdsteknologiskeløsninger (Omsorg 2020)\"\nRapporteringen for velferdsteknologiprogram skal gjøres under punkt 7) ",null,null,0]
["d. Samspill med pårørende og frivillige i omsorgssektoren generelt og demensomsorgen spesielt",null,null,0]
["e. Legemiddelhåndtering",null,null,0]
["f. Ernæring",null,null,0]
["g. Fritidsaktivitet med assistanse",null,null,0]
["h. Kulturopplevelser",null,null,0]
["i. Annet",null,null,0]
["SUM (5.1) :",null,null,{"$f":"SUM(D76:D84)","v":0}]
["6. Tilskudd til Innovasjonsprosjekter"]
["6.1. Totalt søkt beløp  ",null,null,0]
["6.2. Utbetalt beløp  ",null,null,0]
["6.3. Ubenyttet beløp ",null,null,0]
["7. Nasjonalt velferdsteknologiprogram - innføring av velferdsteknologiske løsninger"]
["7.1. Totalt søkt beløp",null,null,0]
["7.2. Utbetalt beløp",null,null,0]
["7.3. Ubenyttet beløp",null,null,0]

{"sheet":"Farsund","index":13,"n_rows":93,"n_cols":4,"rows_kept":93,"cut":false,"hidden":false,"merged":[]}
["1. Måloppnåelse (antall ansatte) til Kompetansetiltak (grunn-, videre- og etterutdanning)"]
["1.1. Videregående skole, fag- og yrkesopplæring innen helse (fagbrev)"]
["Utdanningstype","Fullført utdanning ","Under utdanning, men ikke fullført","Samlet antall fullførte og under utdanning "]
["a. Helsefagarbeider",0,0,{"$f":"B4+C4","v":0}]
["b. Annen utdanning på videregående skolenivå ",0,0,{"$f":"B5+C5","v":0}]
["Sum (1.1) :",{"$f":"SUM(B4:B5)","v":0},{"$f":"SUM(C4:C5)","v":0},0]
["1.2. Fagskoleutdanning"]
["a. Psykisk helsearbeid og rusarbeid",0,0,0]
["b. Eldreomsorg/demens",0,0,0]
["c. Habilitering/rehabilitering",0,0,0]
["d. Kreftomsorg/lindrende behandling",0,0,0]
["e. Veiledning",0,0,0]
["f. Annen fagskoleutdanning ",0,0,0]
["Sum (1.2) :",{"$f":"SUM(B8:B13)","v":0},{"$f":"SUM(C8:C13)","v":0},0]
["1.3. Bachelorutdanning helse- og sosialfag"]
["a. Sykepleie",0,0,0]
["b. Vernepleie",0,0,0]
["c. Fysioterapi",0,0,0]
["d. Ergoterapi",0,0,0]
["e. Sosialt arbeid (sosionom)",0,0,0]
["f. Barnevernspedagogikk",0,0,0]
["g. Annen bachelorutdanning",0,0,0]
["Sum (1.3) :",{"$f":"SUM(B16:B22)","v":0},{"$f":"SUM(C16:C22)","v":0},0]
["1.4. Videreutdanning og mastergradutdanning (påbygg bachelorutdanning)"]
["a. Psykisk helsearbeid og rusarbeid",0,0,0]
["b. Tverrfaglig videreutdanning i psykososialt arbeid med barn og unge",0,0,0]
["c. Eldreomsorg/demens",0,0,0]
["d. Kreftomsorg/lindrende pleie",0,0,0]
["e. Habilitering/rehabilitering",0,0,0]
["f. Veiledning",0,0,0]
["g. Lederutdanning",0,0,0]
["h. Annen videreutdanning og/eller masterutdanning ",0,0,0]
["Sum (1.4) :",{"$f":"SUM(B25:B32)","v":0},{"$f":"SUM(C25:C32)","v":0},0]
["1.5. ABC-opplæring"]
["a. Demensomsorgens ABC",0,0,0]
["b. Eldreomsorgens ABC",0,0,0]
["c. Mitt livs ABC",0,0,{"$f":"B37+C37","v":0}]
["d. Velferdsteknologien ABC",0,0,0]
["e. ABC musikkbasert miljøbehandling",0,0,0]
["Sum (1.5) :",{"$f":"SUM(B35:B39)","v":0},{"$f":"SUM(C35:C39)","v":0},0]
["1.6. Annen internopplæring / korte etterutdanninger mv. "]
["a.  Innen psykisk helsearbeid og rusfeltet",0,0,0]
["b. Innen eldreomsorg og demens",null,null,0]
["c. Annet høyt prioritert internopplæring/etterutdanning",0,0,0]
["Sum (1.6) :",{"$f":"SUM(B42:B44)","v":0},{"$f":"SUM(C42:C44)","v":0},0]
[" 1.7. Andre kompetansehevende tiltak med midler direkte fra fylkesmannen  (utdyp i skriftlig del av rapporteringsskjema)"]
["a. Fylkeskoordinator til prosjekt Menn i helse  (ikke for kommuner)",0,0,0]
["b. Desentralisert utdanning fra høgskoler/universiteter (ikke for kommuner)",0,0,0]
["c. Annet  (ikke forkommuner)",0,0,0]
["Sum (1.7) :",{"$f":"SUM(B47:B49)","v":0},{"$f":"SUM(C47:C49)","v":0},{"$f":"B50+C50","v":0}]
["Kompetansetiltak (måloppnåelse) Totalt :",{"$f":"B6+B14+B23+B33+B40+B45+B50","v":0},{"$f":"C6+C14+C23+C33+C40+C45+C50","v":0},{"$f":"B51+C51","v":0}]
["2. Tilskudd til Kompetansetiltak"]
["2.1. Totalt søkt beløp (Kompetansetiltak totalt)",null,null,0]
["2.2. Utbetalt beløp (Kompetansetiltak totalt)",null,null,{"$f":"SUM(D55:D61)","v":0}]
["a. Videregående skole, fag- og yrkesopplæring innen helse (fagbrev)",null,null,0]
["b. Fagskoleutdanning",null,null,0]
["c. Bachelorutdanning helse- og sosialfag",null,null,0]
["d.  Videreutdanning og mastergradutdanning (påbygg bachelorutdanning)",null,null,0]
["e. ABC-opplæring",null,null,0]
["f. Annen internopplæring / korte etterutdanninger /kurs mv. ",null,null,0]
["g. Andre Kompetansehevende tiltak. Fylkesmannen rapporterer her, ikke kommuner",null,null,0]
["2.3. Ubenyttet beløp (Kompetansetiltak totalt)",null,null,0]
["3. Opplæringstilskudd BPA (brukerstyrt personlig assistanse)"]
["3.1. Opplæringstype",null,null,"Antall personer innvilget"]
["a. Arbeidsledere som har fått tilskudd til opplæring",null,null,0]
["b. Saksbehandlere som har fått tilskudd til opplæring",null,null,0]
["c. Assistenter som har fått tilskudd til opplæring",null,null,0]
["d. Uspesifisert ",null,null,0]
["SUM (3.1) :",null,null,{"$f":"SUM(D65:D68)","v":0}]
["4. Tilskudd til BPA"]
["4.1. Totalt søkt beløp ",null,null,0]
["4.2. Utbetalt beløp  ",null,null,0]
["4.3. Ubenyttet beløp ",null,null,0]
["5. Innovasjonsprosjekter"]
["5.1. Prosjekttype",null,null,"Antall prosjekter innvilget"]
["a. Forebygging,  tidlig innsats og egenmestring",null,null,0]
["b. Habilitering og rehabilitering, herunder hverdagsrehabilitering",null,null,0]
["c. Velferdsteknologiske løsninger\n(Dette punktet gjelder ikke for øremerkede midler til \"Nasjonalt velferdsteknologiprogram- innføring av velferdsteknologiskeløsninger (Omsorg 2020)\"\nRapporteringen for velferdsteknologiprogram skal gjøres under punkt 7) ",null,null,0]
["d. Samspill med pårørende og frivillige i omsorgssektoren generelt og demensomsorgen spesielt",null,null,0]
["e. Legemiddelhåndtering",null,null,0]
["f. Ernæring",null,null,0]
["g. Fritidsaktivitet med assistanse",null,null,0]
["h. Kulturopplevelser",null,null,0]
["i. Annet",null,null,0]
["SUM (5.1) :",null,null,{"$f":"SUM(D76:D84)","v":0}]
["6. Tilskudd til Innovasjonsprosjekter"]
["6.1. Totalt søkt beløp  ",null,null,0]
["6.2. Utbetalt beløp  ",null,null,0]
["6.3. Ubenyttet beløp ",null,null,0]
["7. Nasjonalt velferdsteknologiprogram - innføring av velferdsteknologiske løsninger"]
["7.1. Totalt søkt beløp",null,null,0]
["7.2. Utbetalt beløp",null,null,0]
["7.3. Ubenyttet beløp",null,null,0]

{"sheet":"Mandal","index":14,"n_rows":93,"n_cols":4,"rows_kept":93,"cut":false,"hidden":false,"merged":[]}
["1. Måloppnåelse (antall ansatte) til Kompetansetiltak (grunn-, videre- og etterutdanning)"]
["1.1. Videregående skole, fag- og yrkesopplæring innen helse (fagbrev)"]
["Utdanningstype","Fullført utdanning ","Under utdanning, men ikke fullført","Samlet antall fullførte og under utdanning "]
["a. Helsefagarbeider",0,0,{"$f":"B4+C4","v":0}]
["b. Annen utdanning på videregående skolenivå ",0,0,{"$f":"B5+C5","v":0}]
["Sum (1.1) :",{"$f":"SUM(B4:B5)","v":0},{"$f":"SUM(C4:C5)","v":0},0]
["1.2. Fagskoleutdanning"]
["a. Psykisk helsearbeid og rusarbeid",0,0,0]
["b. Eldreomsorg/demens",0,0,0]
["c. Habilitering/rehabilitering",0,0,0]
["d. Kreftomsorg/lindrende behandling",0,0,0]
["e. Veiledning",0,0,0]
["f. Annen fagskoleutdanning ",0,0,0]
["Sum (1.2) :",{"$f":"SUM(B8:B13)","v":0},{"$f":"SUM(C8:C13)","v":0},0]
["1.3. Bachelorutdanning helse- og sosialfag"]
["a. Sykepleie",0,0,0]
["b. Vernepleie",0,0,0]
["c. Fysioterapi",0,0,0]
["d. Ergoterapi",0,0,0]
["e. Sosialt arbeid (sosionom)",0,0,0]
["f. Barnevernspedagogikk",0,0,0]
["g. Annen bachelorutdanning",0,0,0]
["Sum (1.3) :",{"$f":"SUM(B16:B22)","v":0},{"$f":"SUM(C16:C22)","v":0},0]
["1.4. Videreutdanning og mastergradutdanning (påbygg bachelorutdanning)"]
["a. Psykisk helsearbeid og rusarbeid",0,0,0]
["b. Tverrfaglig videreutdanning i psykososialt arbeid med barn og unge",0,0,0]
["c. Eldreomsorg/demens",0,0,0]
["d. Kreftomsorg/lindrende pleie",0,0,0]
["e. Habilitering/rehabilitering",0,0,0]
["f. Veiledning",0,0,0]
["g. Lederutdanning",0,0,0]
["h. Annen videreutdanning og/eller masterutdanning ",0,0,0]
["Sum (1.4) :",{"$f":"SUM(B25:B32)","v":0},{"$f":"SUM(C25:C32)","v":0},0]
["1.5. ABC-opplæring"]
["a. Demensomsorgens ABC",0,0,0]
["b. Eldreomsorgens ABC",0,0,0]
["c. Mitt livs ABC",0,0,{"$f":"B37+C37","v":0}]
["d. Velferdsteknologien ABC",0,0,0]
["e. ABC musikkbasert miljøbehandling",0,0,0]
["Sum (1.5) :",{"$f":"SUM(B35:B39)","v":0},{"$f":"SUM(C35:C39)","v":0},0]
["1.6. Annen internopplæring / korte etterutdanninger mv. "]
["a.  Innen psykisk helsearbeid og rusfeltet",0,0,0]
["b. Innen eldreomsorg og demens",null,null,0]
["c. Annet høyt prioritert internopplæring/etterutdanning",0,0,0]
["Sum (1.6) :",{"$f":"SUM(B42:B44)","v":0},{"$f":"SUM(C42:C44)","v":0},0]
[" 1.7. Andre kompetansehevende tiltak med midler direkte fra fylkesmannen  (utdyp i skriftlig del av rapporteringsskjema)"]
["a. Fylkeskoordinator til prosjekt Menn i helse  (ikke for kommuner)",0,0,0]
["b. Desentralisert utdanning fra høgskoler/universiteter (ikke for kommuner)",0,0,0]
["c. Annet  (ikke forkommuner)",0,0,0]
["Sum (1.7) :",{"$f":"SUM(B47:B49)","v":0},{"$f":"SUM(C47:C49)","v":0},{"$f":"B50+C50","v":0}]
["Kompetansetiltak (måloppnåelse) Totalt :",{"$f":"B6+B14+B23+B33+B40+B45+B50","v":0},{"$f":"C6+C14+C23+C33+C40+C45+C50","v":0},{"$f":"B51+C51","v":0}]
["2. Tilskudd til Kompetansetiltak"]
["2.1. Totalt søkt beløp (Kompetansetiltak totalt)",null,null,0]
["2.2. Utbetalt beløp (Kompetansetiltak totalt)",null,null,{"$f":"SUM(D55:D61)","v":0}]
["a. Videregående skole, fag- og yrkesopplæring innen helse (fagbrev)",null,null,0]
["b. Fagskoleutdanning",null,null,0]
["c. Bachelorutdanning helse- og sosialfag",null,null,0]
["d.  Videreutdanning og mastergradutdanning (påbygg bachelorutdanning)",null,null,0]
["e. ABC-opplæring",null,null,0]
["f. Annen internopplæring / korte etterutdanninger /kurs mv. ",null,null,0]
["g. Andre Kompetansehevende tiltak. Fylkesmannen rapporterer her, ikke kommuner",null,null,0]
["2.3. Ubenyttet beløp (Kompetansetiltak totalt)",null,null,0]
["3. Opplæringstilskudd BPA (brukerstyrt personlig assistanse)"]
["3.1. Opplæringstype",null,null,"Antall personer innvilget"]
["a. Arbeidsledere som har fått tilskudd til opplæring",null,null,0]
["b. Saksbehandlere som har fått tilskudd til opplæring",null,null,0]
["c. Assistenter som har fått tilskudd til opplæring",null,null,0]
["d. Uspesifisert ",null,null,0]
["SUM (3.1) :",null,null,{"$f":"SUM(D65:D68)","v":0}]
["4. Tilskudd til BPA"]
["4.1. Totalt søkt beløp ",null,null,0]
["4.2. Utbetalt beløp  ",null,null,0]
["4.3. Ubenyttet beløp ",null,null,0]
["5. Innovasjonsprosjekter"]
["5.1. Prosjekttype",null,null,"Antall prosjekter innvilget"]
["a. Forebygging,  tidlig innsats og egenmestring",null,null,0]
["b. Habilitering og rehabilitering, herunder hverdagsrehabilitering",null,null,0]
["c. Velferdsteknologiske løsninger\n(Dette punktet gjelder ikke for øremerkede midler til \"Nasjonalt velferdsteknologiprogram- innføring av velferdsteknologiskeløsninger (Omsorg 2020)\"\nRapporteringen for velferdsteknologiprogram skal gjøres under punkt 7) ",null,null,0]
["d. Samspill med pårørende og frivillige i omsorgssektoren generelt og demensomsorgen spesielt",null,null,0]
["e. Legemiddelhåndtering",null,null,0]
["f. Ernæring",null,null,0]
["g. Fritidsaktivitet med assistanse",null,null,0]
["h. Kulturopplevelser",null,null,0]
["i. Annet",null,null,0]
["SUM (5.1) :",null,null,{"$f":"SUM(D76:D84)","v":0}]
["6. Tilskudd til Innovasjonsprosjekter"]
["6.1. Totalt søkt beløp  ",null,null,0]
["6.2. Utbetalt beløp  ",null,null,0]
["6.3. Ubenyttet beløp ",null,null,0]
["7. Nasjonalt velferdsteknologiprogram - innføring av velferdsteknologiske løsninger"]
["7.1. Totalt søkt beløp",null,null,0]
["7.2. Utbetalt beløp",null,null,0]
["7.3. Ubenyttet beløp",null,null,0]

{"sheet":"Kristiansand","index":15,"n_rows":93,"n_cols":4,"rows_kept":93,"cut":false,"hidden":false,"merged":[]}
["1. Måloppnåelse (antall ansatte) til Kompetansetiltak (grunn-, videre- og etterutdanning)"]
["1.1. Videregående skole, fag- og yrkesopplæring innen helse (fagbrev)"]
["Utdanningstype","Fullført utdanning ","Under utdanning, men ikke fullført","Samlet antall fullførte og under utdanning "]
["a. Helsefagarbeider",0,0,{"$f":"B4+C4","v":0}]
["b. Annen utdanning på videregående skolenivå ",0,0,{"$f":"B5+C5","v":0}]
["Sum (1.1) :",{"$f":"SUM(B4:B5)","v":0},{"$f":"SUM(C4:C5)","v":0},0]
["1.2. Fagskoleutdanning"]
["a. Psykisk helsearbeid og rusarbeid",0,0,0]
["b. Eldreomsorg/demens",0,0,0]
["c. Habilitering/rehabilitering",0,0,0]
["d. Kreftomsorg/lindrende behandling",0,0,0]
["e. Veiledning",0,0,0]
["f. Annen fagskoleutdanning ",0,0,0]
["Sum (1.2) :",{"$f":"SUM(B8:B13)","v":0},{"$f":"SUM(C8:C13)","v":0},0]
["1.3. Bachelorutdanning helse- og sosialfag"]
["a. Sykepleie",0,0,0]
["b. Vernepleie",0,0,0]
["c. Fysioterapi",0,0,0]
["d. Ergoterapi",0,0,0]
["e. Sosialt arbeid (sosionom)",0,0,0]
["f. Barnevernspedagogikk",0,0,0]
["g. Annen bachelorutdanning",0,0,0]
["Sum (1.3) :",{"$f":"SUM(B16:B22)","v":0},{"$f":"SUM(C16:C22)","v":0},0]
["1.4. Videreutdanning og mastergradutdanning (påbygg bachelorutdanning)"]
["a. Psykisk helsearbeid og rusarbeid",0,0,0]
["b. Tverrfaglig videreutdanning i psykososialt arbeid med barn og unge",0,0,0]
["c. Eldreomsorg/demens",0,0,0]
["d. Kreftomsorg/lindrende pleie",0,0,0]
["e. Habilitering/rehabilitering",0,0,0]
["f. Veiledning",0,0,0]
["g. Lederutdanning",0,0,0]
["h. Annen videreutdanning og/eller masterutdanning ",0,0,0]
["Sum (1.4) :",{"$f":"SUM(B25:B32)","v":0},{"$f":"SUM(C25:C32)","v":0},0]
["1.5. ABC-opplæring"]
["a. Demensomsorgens ABC",0,0,0]
["b. Eldreomsorgens ABC",0,0,0]
["c. Mitt livs ABC",0,0,{"$f":"B37+C37","v":0}]
["d. Velferdsteknologien ABC",0,0,0]
["e. ABC musikkbasert miljøbehandling",0,0,0]
["Sum (1.5) :",{"$f":"SUM(B35:B39)","v":0},{"$f":"SUM(C35:C39)","v":0},0]
["1.6. Annen internopplæring / korte etterutdanninger mv. "]
["a.  Innen psykisk helsearbeid og rusfeltet",0,0,0]
["b. Innen eldreomsorg og demens",null,null,0]
["c. Annet høyt prioritert internopplæring/etterutdanning",0,0,0]
["Sum (1.6) :",{"$f":"SUM(B42:B44)","v":0},{"$f":"SUM(C42:C44)","v":0},0]
[" 1.7. Andre kompetansehevende tiltak med midler direkte fra fylkesmannen  (utdyp i skriftlig del av rapporteringsskjema)"]
["a. Fylkeskoordinator til prosjekt Menn i helse  (ikke for kommuner)",0,0,0]
["b. Desentralisert utdanning fra høgskoler/universiteter (ikke for kommuner)",0,0,0]
["c. Annet  (ikke forkommuner)",0,0,0]
["Sum (1.7) :",{"$f":"SUM(B47:B49)","v":0},{"$f":"SUM(C47:C49)","v":0},{"$f":"B50+C50","v":0}]
["Kompetansetiltak (måloppnåelse) Totalt :",{"$f":"B6+B14+B23+B33+B40+B45+B50","v":0},{"$f":"C6+C14+C23+C33+C40+C45+C50","v":0},{"$f":"B51+C51","v":0}]
["2. Tilskudd til Kompetansetiltak"]
["2.1. Totalt søkt beløp (Kompetansetiltak totalt)",null,null,0]
["2.2. Utbetalt beløp (Kompetansetiltak totalt)",null,null,{"$f":"SUM(D55:D61)","v":0}]
["a. Videregående skole, fag- og yrkesopplæring innen helse (fagbrev)",null,null,0]
["b. Fagskoleutdanning",null,null,0]
["c. Bachelorutdanning helse- og sosialfag",null,null,0]
["d.  Videreutdanning og mastergradutdanning (påbygg bachelorutdanning)",null,null,0]
["e. ABC-opplæring",null,null,0]
["f. Annen internopplæring / korte etterutdanninger /kurs mv. ",null,null,0]
["g. Andre Kompetansehevende tiltak. Fylkesmannen rapporterer her, ikke kommuner",null,null,0]
["2.3. Ubenyttet beløp (Kompetansetiltak totalt)",null,null,0]
["3. Opplæringstilskudd BPA (brukerstyrt personlig assistanse)"]
["3.1. Opplæringstype",null,null,"Antall personer innvilget"]
["a. Arbeidsledere som har fått tilskudd til opplæring",null,null,0]
["b. Saksbehandlere som har fått tilskudd til opplæring",null,null,0]
["c. Assistenter som har fått tilskudd til opplæring",null,null,0]
["d. Uspesifisert ",null,null,0]
["SUM (3.1) :",null,null,{"$f":"SUM(D65:D68)","v":0}]
["4. Tilskudd til BPA"]
["4.1. Totalt søkt beløp ",null,null,0]
["4.2. Utbetalt beløp  ",null,null,0]
["4.3. Ubenyttet beløp ",null,null,0]
["5. Innovasjonsprosjekter"]
["5.1. Prosjekttype",null,null,"Antall prosjekter innvilget"]
["a. Forebygging,  tidlig innsats og egenmestring",null,null,0]
["b. Habilitering og rehabilitering, herunder hverdagsrehabilitering",null,null,0]
["c. Velferdsteknologiske løsninger\n(Dette punktet gjelder ikke for øremerkede midler til \"Nasjonalt velferdsteknologiprogram- innføring av velferdsteknologiskeløsninger (Omsorg 2020)\"\nRapporteringen for velferdsteknologiprogram skal gjøres under punkt 7) ",null,null,0]
["d. Samspill med pårørende og frivillige i omsorgssektoren generelt og demensomsorgen spesielt",null,null,0]
["e. Legemiddelhåndtering",null,null,0]
["f. Ernæring",null,null,0]
["g. Fritidsaktivitet med assistanse",null,null,0]
["h. Kulturopplevelser",null,null,0]
["i. Annet",null,null,0]
["SUM (5.1) :",null,null,{"$f":"SUM(D76:D84)","v":0}]
["6. Tilskudd til Innovasjonsprosjekter"]
["6.1. Totalt søkt beløp  ",null,null,0]
["6.2. Utbetalt beløp  ",null,null,0]
["6.3. Ubenyttet beløp ",null,null,0]
["7. Nasjonalt velferdsteknologiprogram - innføring av velferdsteknologiske løsninger"]
["7.1. Totalt søkt beløp",null,null,0]
["7.2. Utbetalt beløp",null,null,0]
["7.3. Ubenyttet beløp",null,null,0]

{"sheet":"Ark1","index":16,"n_rows":0,"n_cols":0,"rows_kept":0,"cut":false,"hidden":false,"merged":[]}